{"text_format":"1","workbook":"xlsx","n_sheets":3,"sheets":["Resoluciones","Base","Dashboard"],"not_rendered":{"charts":11,"images":5,"macros":1,"external_links":0,"defined_names":8,"comments":0,"pivot_tables":28},"unopened":[],"bounds":{"document_bytes":16777216,"sheet_cells":100000,"rows_first":2000,"rows_last":500,"rows_between":2000,"halvings":0,"cell_chars":16384,"cell_head_chars":4096},"cells_cut":0,"cells_raw":0,"read":"whole","date_system":"1900"}

{"sheet":"Resoluciones","index":0,"n_rows":49,"n_cols":8,"rows_kept":49,"cut":false,"hidden":true,"merged":[]}
["Provincia_Entidad_","Nombre Sector_","Sector_Agrupado","Número de entidades que publicaron resoluciones_","Número de resoluciones publicadas","Número de entidades que registraron contrataciones","Número de contrataciones registradas","Año"]
["Azuay","EP de los GAD","GAD y sus EP",3,5,1,1,2021]
["Azuay","Educación Superior","Gobierno Central y sus EP",1,1,1,1,2021]
["Azuay","GAD Municipales","GAD y sus EP",5,6,2,6,2021]
["Azuay","GAD Parroquiales Rurales","GAD y sus EP",2,2,1,5,2021]
["Azuay","GAD Provinciales","GAD y sus EP",1,1,null,null,2021]
["Azuay","Sociedades Anónimas","Otros",1,3,1,24,2021]
["Bolívar","Seguridad Social","Gobierno Central y sus EP",1,1,null,null,2021]
["Carchi","GAD Municipales","GAD y sus EP",1,2,1,1,2021]
["Cañar","GAD Municipales","GAD y sus EP",2,2,1,2,2021]
["Cañar","GAD Provinciales","GAD y sus EP",1,1,1,4,2021]
["Chimborazo","EP de los GAD","GAD y sus EP",null,null,1,6,2021]
["Chimborazo","GAD Municipales","GAD y sus EP",4,5,2,2,2021]
["Chimborazo","GAD Parroquiales Rurales","GAD y sus EP",2,2,2,3,2021]
["Chimborazo","GAD Provinciales","GAD y sus EP",1,1,null,null,2021]
["El Oro","Administración del Estado","Gobierno Central y sus EP",1,1,null,null,2021]
["El Oro","EP de los GAD","GAD y sus EP",2,2,2,7,2021]
["El Oro","GAD Municipales","GAD y sus EP",5,5,3,4,2021]
["Esmeraldas","Administración del Estado","Gobierno Central y sus EP",1,2,null,null,2021]
["Esmeraldas","EP de la Función Ejecutiva","Gobierno Central y sus EP",1,1,1,1,2021]
["Esmeraldas","GAD Municipales","GAD y sus EP",2,2,null,null,2021]
["Guayas","Administración del Estado","Gobierno Central y sus EP",3,4,2,10,2021]
["Guayas","EP de la Función Ejecutiva","Gobierno Central y sus EP",null,null,1,1,2021]
["Guayas","GAD Municipales","GAD y sus EP",6,8,2,2,2021]
["Guayas","GAD Provinciales","GAD y sus EP",null,null,1,1,2021]
["Imbabura","GAD Municipales","GAD y sus EP",1,2,1,6,2021]
["Loja","GAD Municipales","GAD y sus EP",6,6,1,10,2021]
["Loja","GAD Parroquiales Rurales","GAD y sus EP",1,1,null,null,2021]
["Loja","Sociedades Anónimas","Otros",1,1,null,null,2021]
["Los Ríos","GAD Municipales","GAD y sus EP",2,2,1,1,2021]
["Manabí","Administración del Estado","Gobierno Central y sus EP",1,2,1,7,2021]
["Manabí","GAD Municipales","GAD y sus EP",7,9,3,12,2021]
["Manabí","GAD Parroquiales Rurales","GAD y sus EP",1,1,1,1,2021]
["Morona Santiago","Administración del Estado","Gobierno Central y sus EP",null,null,1,3,2021]
["Morona Santiago","GAD Municipales","GAD y sus EP",3,3,null,null,2021]
["Morona Santiago","GAD Provinciales","GAD y sus EP",1,1,null,null,2021]
["Napo","Administración del Estado","Gobierno Central y sus EP",1,1,null,null,2021]
["Napo","GAD Municipales","GAD y sus EP",1,1,null,null,2021]
["Napo","GAD Provinciales","GAD y sus EP",1,1,null,null,2021]
["Pastaza","GAD Municipales","GAD y sus EP",1,1,null,null,2021]
["Pastaza","GAD Parroquiales Rurales","GAD y sus EP",null,null,1,1,2021]
["Pichincha","Administración del Estado","Gobierno Central y sus EP",3,6,2,3,2021]
["Pichincha","EP de los GAD","GAD y sus EP",1,1,null,null,2021]
["Pichincha","GAD Provinciales","GAD y sus EP",1,1,1,1,2021]
["Santa Elena","Administración del Estado","Gobierno Central y sus EP",1,1,1,5,2021]
["Santa Elena","GAD Provinciales","GAD y sus EP",1,1,1,1,2021]
["Sucumbíos","GAD Municipales","GAD y sus EP",2,2,1,2,2021]
["Tungurahua","GAD Municipales","GAD y sus EP",2,2,1,1,2021]
["Zamora Chinchipe","GAD Municipales","GAD y sus EP",2,2,1,2,2021]

{"sheet":"Base","index":1,"n_rows":256,"n_cols":12,"rows_kept":256,"cut":false,"hidden":true,"merged":[]}
["Código_Proceso","Descripción CPC_N9","Tipo_compra","Nombre_Entidad","Provincia_Entidad_","Razón_Social_Proveedor","Valor_adjudicado","Valor_adjudicado millones","Nombre Sector_","Nombre Sectorial_","Sector_Agrupado","Mes"]
["0004-CAQA-P-GADPRH-2-00001","TUBOS DE PVC","Bien","GOBIERNO AUTONOMO DESCENTRALIZADO PARROQUIAL RURAL DE HUIGRA","Chimborazo","SANTILLAN CARGUA CLARA NARCIZA",696.428,6.9642800372093916E-4,"GAD Parroquiales Rurales","Régimen de GAD","GAD y sus EP","Marzo"]
["0004-CAQA-P-GADPRH-2-00002","BOMBAS MULTIPROPOSITO","Bien","GOBIERNO AUTONOMO DESCENTRALIZADO PARROQUIAL RURAL DE HUIGRA","Chimborazo","HERRERA LEMA DARWIN FERNANDO",299.99,2.9999000253155828E-4,"GAD Parroquiales Rurales","Régimen de GAD","GAD y sus EP","Abril"]
["001-2021-00001","SERVICIO DE VIGILANCIA FISICA CON MEDIO HUMANO, CON ARMA","Servicio","UNIVERSIDAD DE CUENCA","Azuay","CASTVISE CIA LTDA",251550,0.25154998898506165,"Educación Superior","Educación","Gobierno Central y sus EP","Febrero"]
["001-AD-GADMN-2021-00003","ALQUILER DE EQUIPO CAMINERO","Servicio","GOBIERNO AUTONOMO DESCENTRALIZADO MUNICIPAL NABON","Azuay","VERDUGO CARRION JOHANNA ESTEFANIA",3571.2,3.5711999516934156E-3,"GAD Municipales","Régimen de GAD","GAD y sus EP","Abril"]
["001-AD-GADMN-2021-00004","SERVICIOS COMERCIALES AL POR MAYOR  PRESTADOS A COMISION O POR CONTRATO, DE ARTICULOS DE FERRETERIA ","Bien","GOBIERNO AUTONOMO DESCENTRALIZADO MUNICIPAL NABON","Azuay","SARMIENTO JARRIN ANGEL RAMIRO",16719.349999999999,1.6719350591301918E-2,"GAD Municipales","Régimen de GAD","GAD y sus EP","Mayo"]
["001-ADM-DEEM-GADPSE-00001","ALQUILER DE EQUIPO CAMINERO","Servicio","GOBIERNO AUTONOMO DESCENTRALIZADO PROVINCIAL DE SANTA ELENA","Santa Elena","SAENZ RONQUILLO JOSE ANTONIO",171945,0.1719450056552887,"GAD Provinciales","Régimen de GAD","GAD y sus EP","Abril"]
["001-GADMP-2021-00001","OTRAS OBRAS DE INGENIERIA CIVIL","Obra","GOBIERNO AUTONOMO DESCENTRALIZADO MUNICIPAL DE PUTUMAYO","Sucumbíos","MEJIA LOOR FERNANDO BENEFRIDO",57306.75,5.7306751608848572E-2,"GAD Municipales","Régimen de GAD","GAD y sus EP","Febrero"]
["001-GADMP-2021-00002","SERVICIOS DE DISENO DE INGENIERIA PARA OBRAS DE IRRIGACION","Consultoría","GOBIERNO AUTONOMO DESCENTRALIZADO MUNICIPAL DE PUTUMAYO","Sucumbíos","CONSTRUFISCA S.A.",157146.12,0.15714612603187561,"GAD Municipales","Régimen de GAD","GAD y sus EP","Febrero"]
["001-IZZ-AGADMCS-2021-00001","SERVICIOS DE ALQUILER DE EQUIPO  CON O SIN OPCION DE COMPRA  DE EQUIPOS PARA LA CONSTRUCCION  O DEMOLICION DE EDIFICIOS PARA TRABAJOS DE INGENIERIA CIVIL  CON OPERARIOS Y SERVICIOS OPERATIVOS PROPORCIONADOS POR LOS MISMOS","Servicio","GOBIERNO AUTONOMO DESCENTRALIZADO MUNICIPAL DEL CANTON SUCRE","Manabí","CONSTRUCIONES Y TRANSPORTE SUCRE SUCRETRANSCON S.A.",32400,3.2400000840425491E-2,"GAD Municipales","Régimen de GAD","GAD y sus EP","Abril"]
["001-IZZ-AGADMCS-2021-00002","OTRAS OBRAS DE INGENIERIA CIVIL","Obra","GOBIERNO AUTONOMO DESCENTRALIZADO MUNICIPAL DEL CANTON SUCRE","Manabí","CHINGA PANTA CARLOS ANIBAL",72319.27,7.2319269180297852E-2,"GAD Municipales","Régimen de GAD","GAD y sus EP","Abril"]
["001-JPC-G-EMAPASI-00001","OTRAS OBRAS DE INGENIERIA CIVIL","Obra","EMPRESA PÚBLICA MUNICIPAL DE AGUA POTABLE, ALCANTARILLADO, MANEJO FLUVIAL Y DEPURACIÓN DE RESIDUOS LÍQUIDOS DE SANTA ISABEL.","Azuay","VARGAS PINEDA BYRON RODRIGO",8726.17,8.7261702865362167E-3,"EP de los GAD","Desarrollo Urbano y Vivienda","GAD y sus EP","Marzo"]
["002-2021-00001","ALQUILER DE EQUIPO CAMINERO","Servicio","ILUSTRE MUNICIPALIDAD DEL CANTÓN JAMA","Manabí","LUQUE INTRIAGO EFREN ANGEL ALBERTO",14261.6,1.4261599630117416E-2,"GAD Municipales","Régimen de GAD","GAD y sus EP","Marzo"]
["002-2021-00002","ALQUILER DE EQUIPO CAMINERO","Servicio","ILUSTRE MUNICIPALIDAD DEL CANTÓN JAMA","Manabí","GARCIA GARCIA JORGE ALFREDO",41477.64,4.1477639228105545E-2,"GAD Municipales","Régimen de GAD","GAD y sus EP","Marzo"]
["0023-AC-GADCA-2021-00001","ABRAZADERA UNIVERSAL","Bien","GOBIERNO AUTONOMO DESCENTRALIZADO DEL CANTON ATAHUALPA","El Oro","COMERCIAL APOLO PONTON C. LTDA.",100.5,1.005000012810342E-4,"GAD Municipales","Régimen de GAD","GAD y sus EP","Marzo"]
["0023-AC-GADCA-2021-00001","CODO PARA USO EN TUBOS SANITARIA","Bien","GOBIERNO AUTONOMO DESCENTRALIZADO DEL CANTON ATAHUALPA","El Oro","COMERCIAL APOLO PONTON C. LTDA.",250,2.5000001187436283E-4,"GAD Municipales","Régimen de GAD","GAD y sus EP","Marzo"]
["0023-AC-GADCA-2021-00001","GAVION DE ALAMBRE DE ACERO GALVANIZADO","Bien","GOBIERNO AUTONOMO DESCENTRALIZADO DEL CANTON ATAHUALPA","El Oro","COMERCIAL APOLO PONTON C. LTDA.",1774.5,1.7745000077411532E-3,"GAD Municipales","Régimen de GAD","GAD y sus EP","Marzo"]
["0023-AC-GADCA-2021-00001","MANGUERAS DE PROPILENO","Bien","GOBIERNO AUTONOMO DESCENTRALIZADO DEL CANTON ATAHUALPA","El Oro","COMERCIAL APOLO PONTON C. LTDA.",2950,2.9500001110136509E-3,"GAD Municipales","Régimen de GAD","GAD y sus EP","Marzo"]
["0023-AC-GADCA-2021-00001","OTROS ACCESORIOS PARA TUBOS O CANOS, DE HIERRO O ACERO INOXIDABLE:  COLLARES.","Bien","GOBIERNO AUTONOMO DESCENTRALIZADO DEL CANTON ATAHUALPA","El Oro","COMERCIAL APOLO PONTON C. LTDA.",20.76,2.0760000552400015E-5,"GAD Municipales","Régimen de GAD","GAD y sus EP","Marzo"]
["0023-AC-GADCA-2021-00001","SERVICIOS COMERCIALES AL POR MAYOR  PRESTADOS A COMISION O POR CONTRATO, DE ARTICULOS DE FERRETERIA ","Bien","GOBIERNO AUTONOMO DESCENTRALIZADO DEL CANTON ATAHUALPA","El Oro","COMERCIAL APOLO PONTON C. LTDA.",860.72,8.6071999976411462E-4,"GAD Municipales","Régimen de GAD","GAD y sus EP","Marzo"]
["0023-AC-GADCA-2021-00001","TEES PARA USO EN TUBOS DE SANITARIA EN PVC","Bien","GOBIERNO AUTONOMO DESCENTRALIZADO DEL CANTON ATAHUALPA","El Oro","COMERCIAL APOLO PONTON C. LTDA.",50,4.9999998736893758E-5,"GAD Municipales","Régimen de GAD","GAD y sus EP","Marzo"]
["0023-AC-GADCA-2021-00001","TUBOS DE POLIETILENO","Bien","GOBIERNO AUTONOMO DESCENTRALIZADO DEL CANTON ATAHUALPA","El Oro","COMERCIAL APOLO PONTON C. LTDA.",1276.8,1.2767999432981014E-3,"GAD Municipales","Régimen de GAD","GAD y sus EP","Marzo"]
["0023-AC-GADCA-2021-00001","TUBOS DE PVC","Bien","GOBIERNO AUTONOMO DESCENTRALIZADO DEL CANTON ATAHUALPA","El Oro","COMERCIAL APOLO PONTON C. LTDA.",662.94,6.6293997224420309E-4,"GAD Municipales","Régimen de GAD","GAD y sus EP","Marzo"]
["0023-AC-GADCA-2021-00001","UNION PARA TUBOS DE USO AGRICOLA EN PVC","Bien","GOBIERNO AUTONOMO DESCENTRALIZADO DEL CANTON ATAHUALPA","El Oro","COMERCIAL APOLO PONTON C. LTDA.",71.36,7.1360002039000392E-5,"GAD Municipales","Régimen de GAD","GAD y sus EP","Marzo"]
["002GADPSJP2020-00003","RACIONES ALIMENTICIAS PREPARADAS PARA SITUACIONES DE EMERGENCIA","Bien","GOBIERNO AUTONOMO DESCENTRALIZADO PARROQUIAL RURAL SAN JOSÉ","Pastaza","PAUCAR LAMAR CLAUDIA MARICELA",6416.14,6.4161401242017746E-3,"GAD Parroquiales Rurales","Régimen de GAD","GAD y sus EP","Marzo"]
["003-AL-2021-00001","OTRAS OBRAS DE INGENIERIA CIVIL","Obra","MUNICIPIO DE LOJA","Loja","CABRERA LOAYZA BRUNO ENRIQUE",44774.83,4.4774830341339111E-2,"GAD Municipales","Régimen de GAD","GAD y sus EP","Abril"]
["003-AL-2021-00002","OTRAS OBRAS DE INGENIERIA CIVIL","Bien","MUNICIPIO DE LOJA","Loja","CAJAMARCA MENDOZA PATRICIO FERNANDO",80533.78,8.0533780157566071E-2,"GAD Municipales","Régimen de GAD","GAD y sus EP","Abril"]
["003-AL-2021-00003","OTRAS OBRAS DE INGENIERIA CIVIL","Obra","MUNICIPIO DE LOJA","Loja","VELEPUCHA GUZMAN HOMERO ALCIVAR",52299.66,5.2299659699201584E-2,"GAD Municipales","Régimen de GAD","GAD y sus EP","Abril"]
["003-AL-2021-00004","OTRAS OBRAS DE INGENIERIA CIVIL","Obra","MUNICIPIO DE LOJA","Loja","CONSTRUCTORA ZUÑIGA CONZU CIA.LTDA.",176524.26,0.17652426660060883,"GAD Municipales","Régimen de GAD","GAD y sus EP","Abril"]
["003-AL-2021-00005","OTRAS OBRAS DE INGENIERIA CIVIL","Obra","MUNICIPIO DE LOJA","Loja","CONSTRUCTORA RAMIRO HIDALGO RHT CIA LTDA",94011.839999999997,9.4011843204498291E-2,"GAD Municipales","Régimen de GAD","GAD y sus EP","Mayo"]
["003-AL-2021-00006","OTRAS OBRAS DE INGENIERIA CIVIL","Obra","MUNICIPIO DE LOJA","Loja","BLACIO AGUIRRE RICHARD HENRY",236672.26,0.23667226731777191,"GAD Municipales","Régimen de GAD","GAD y sus EP","Mayo"]
["003-AL-2021-00007","OTRAS OBRAS DE INGENIERIA CIVIL","Obra","MUNICIPIO DE LOJA","Loja","BENAVIDES PEREZ DAVID ANDRES",235786.25,0.23578624427318573,"GAD Municipales","Régimen de GAD","GAD y sus EP","Mayo"]
["003-AL-2021-00008","OTRAS OBRAS DE INGENIERIA CIVIL","Obra","MUNICIPIO DE LOJA","Loja","JARAMILLO CASTILLO LUIS ENRIQUE",191406.67,0.19140666723251343,"GAD Municipales","Régimen de GAD","GAD y sus EP","Mayo"]
["003-AL-2021-00009","OTRAS OBRAS DE INGENIERIA CIVIL","Obra","MUNICIPIO DE LOJA","Loja","MONTOYA CARRION VICTOR MEDARDO",43710.99,4.3710991740226746E-2,"GAD Municipales","Régimen de GAD","GAD y sus EP","Mayo"]
["003-AL-2021-00010","OTRAS OBRAS DE INGENIERIA CIVIL","Obra","MUNICIPIO DE LOJA","Loja","QUIÑONEZ PABLO ANIBAL",90904.33,9.090433269739151E-2,"GAD Municipales","Régimen de GAD","GAD y sus EP","Mayo"]
["003-P-GADPC-2021-00001","COMPLEJO B  AMPOLLA X 10 ML","Bien","GOBIERNO AUTONOMO DESCENTRALIZADO PARROQUIAL RURAL DE CEBADAS","Chimborazo","LABORATORIO VETERINARIO ECUATORIANO CIA LTDA.",2762,2.7620000764727592E-3,"GAD Parroquiales Rurales","Régimen de GAD","GAD y sus EP","Marzo"]
["003-P-GADPC-2021-00001","JERINGAS,AGUJAS,CATETERES,CANULAS Y ARTICULOS ANALOGOS, AGUJAS TUBULARES DE METAL Y AGUJAS DE SUTURA","Bien","GOBIERNO AUTONOMO DESCENTRALIZADO PARROQUIAL RURAL DE CEBADAS","Chimborazo","LABORATORIO VETERINARIO ECUATORIANO CIA LTDA.",140,1.4000000373926014E-4,"GAD Parroquiales Rurales","Régimen de GAD","GAD y sus EP","Marzo"]
["008-A-GADM-CG-2021-00001","OTRAS OBRAS DE INGENIERIA CIVIL","Obra","GOBIERNO AUTONOMO DESCENTRALIZADO MUNICIPAL DEL CANTON GUANO","Chimborazo","HERRERA RODRIGUEZ CRISTIAN RODNEY",37790.79,3.7790790200233459E-2,"GAD Municipales","Régimen de GAD","GAD y sus EP","Marzo"]
["008-EMAPASR-EP-GG-21-00001","SERVICIOS DE ENSAYO Y ANALISIS DE LAS PROPIEDADES QUIMICAS Y BIOLOGICAS DEL AGUA","Servicio","EMPRESA PUBLICA DE AGUA POTABLE Y ALCANTARILLADO DEL CANTON SANTA ROSA EMAPASR-EP","El Oro","GRUPO QUIMICO MARCOS C. LTDA GRUQUIMAR",7187,7.1870000101625919E-3,"EP de los GAD","Desarrollo Urbano y Vivienda","GAD y sus EP","Febrero"]
["01-E-GADMP-2021-00001","SERVICIOS COMERCIALES AL POR MENOR DE GRANOS, SEMILLAS Y FRUTAS OLEAGINOSAS, SEMILLAS Y FORRAJES (ALIMENTO PARA ANIMALES) EN TIENDAS NO ESPECIALIZADAS","Bien","GOBIERNO AUTONOMO DESCENTRALIZADO MUNICIPAL DE PALLATANGA","Chimborazo","GUERRERO ARCAS MARIO ANDRES",4350,4.3500000610947609E-3,"GAD Municipales","Régimen de GAD","GAD y sus EP","Abril"]
["011-GADMEG-2021-00001","OTRAS OBRAS DE INGENIERIA CIVIL","Obra","GOBIERNO AUTONOMO DESCENTRALIZADO MUNICIPAL DE EL GUABO","El Oro","PONTON DAVILA WILLIAM DANIEL",142142.79999999999,0.14214280247688293,"GAD Municipales","Régimen de GAD","GAD y sus EP","Mayo"]
["016-GADMCCH-A-2021-00002","ALAMBRE DE ACERO GALVANIZADO CLASE REGULAR RESISTENCIA NORMAL DIAMETRO 5.2 MM","Bien","GOBIERNO AUTONOMO DESCENTRALIZADO MUNICIPAL DEL CANTON CHINCHIPE","Zamora Chinchipe","FERRETERIA GARCIA",60,5.999999848427251E-5,"GAD Municipales","Régimen de GAD","GAD y sus EP","Febrero"]
["016-GADMCCH-A-2021-00002","BRAMANTES (HILOS GRUESOS), CORDELES (HILOS DE UN SOLO CABO DELGADOS), CUERDAS Y CORDAJES DE FIBRAS VEGETALES, SEAN O NO IMPREGNADOS, BANADOS O RECUBIERTOS CON CAUCHO O PLASTICO U OTROS MATERIALES","Bien","GOBIERNO AUTONOMO DESCENTRALIZADO MUNICIPAL DEL CANTON CHINCHIPE","Zamora Chinchipe","FERRETERIA GARCIA",2,1.9999999949504854E-6,"GAD Municipales","Régimen de GAD","GAD y sus EP","Febrero"]
["016-GADMCCH-A-2021-00002","CEMENTO PORTLAND O GRIS: CEMENTO BLANCO, COLOREADO ARTIFICIALMENTE O NO","Bien","GOBIERNO AUTONOMO DESCENTRALIZADO MUNICIPAL DEL CANTON CHINCHIPE","Zamora Chinchipe","FERRETERIA GARCIA",127.5,1.2749999586958438E-4,"GAD Municipales","Régimen de GAD","GAD y sus EP","Febrero"]
["016-GADMCCH-A-2021-00002","POLIPROPILENO:  BLOQUES Y FORMAS  SIMILARES,  A   GRANEL, COMPUESTO DE EXTRUSION, COPOS, GRANULOS, MASAS, POLVOS, RESINAS, ETC.","Bien","GOBIERNO AUTONOMO DESCENTRALIZADO MUNICIPAL DEL CANTON CHINCHIPE","Zamora Chinchipe","FERRETERIA GARCIA",18,1.8000000636675395E-5,"GAD Municipales","Régimen de GAD","GAD y sus EP","Febrero"]
["016-GADMCCH-A-2021-00002","TUBOS DE PVC","Bien","GOBIERNO AUTONOMO DESCENTRALIZADO MUNICIPAL DEL CANTON CHINCHIPE","Zamora Chinchipe","FERRETERIA GARCIA",750,7.5000000651925802E-4,"GAD Municipales","Régimen de GAD","GAD y sus EP","Febrero"]
["016-GADMCCH-A-2021-00002","UNION PARA TUBOS DE ACUEDUCTO EN PVC","Bien","GOBIERNO AUTONOMO DESCENTRALIZADO MUNICIPAL DEL CANTON CHINCHIPE","Zamora Chinchipe","FERRETERIA GARCIA",390,3.9000000106170774E-4,"GAD Municipales","Régimen de GAD","GAD y sus EP","Febrero"]
["016-GADMCCH-A-2021-00003","ALAMBRE DE ACERO GALVANIZADO CLASE REGULAR RESISTENCIA NORMAL DIAMETRO 0.9 MM","Bien","GOBIERNO AUTONOMO DESCENTRALIZADO MUNICIPAL DEL CANTON CHINCHIPE","Zamora Chinchipe","ERAZO AGUIRRE FREDDY GONZALO",1194,1.1940000113099813E-3,"GAD Municipales","Régimen de GAD","GAD y sus EP","Febrero"]
["016-GADMCCH-A-2021-00003","CANOS DE PVC","Bien","GOBIERNO AUTONOMO DESCENTRALIZADO MUNICIPAL DEL CANTON CHINCHIPE","Zamora Chinchipe","ERAZO AGUIRRE FREDDY GONZALO",253.7,2.5370001094415784E-4,"GAD Municipales","Régimen de GAD","GAD y sus EP","Febrero"]
["016-GADMCCH-A-2021-00003","GRILLETE CON UN ACABADO EN GALVANIZADO","Bien","GOBIERNO AUTONOMO DESCENTRALIZADO MUNICIPAL DEL CANTON CHINCHIPE","Zamora Chinchipe","ERAZO AGUIRRE FREDDY GONZALO",390,3.9000000106170774E-4,"GAD Municipales","Régimen de GAD","GAD y sus EP","Febrero"]
["016-GADMCCH-A-2021-00003","PAÑO DE LIMPIEZA MULTIUSO","Bien","GOBIERNO AUTONOMO DESCENTRALIZADO MUNICIPAL DEL CANTON CHINCHIPE","Zamora Chinchipe","ERAZO AGUIRRE FREDDY GONZALO",37.5,3.7500001781154424E-5,"GAD Municipales","Régimen de GAD","GAD y sus EP","Febrero"]
["016-GADMCCH-A-2021-00003","PEGANTE INSTANTANEO","Bien","GOBIERNO AUTONOMO DESCENTRALIZADO MUNICIPAL DEL CANTON CHINCHIPE","Zamora Chinchipe","ERAZO AGUIRRE FREDDY GONZALO",207.5,2.0749999384861439E-4,"GAD Municipales","Régimen de GAD","GAD y sus EP","Febrero"]
["016-GADMCCH-A-2021-00003","SERVICIOS COMERCIALES AL POR MENOR DE PRODUCTOS DE LIMPIEZA EN TIENDAS ESPECIALIZADAS","Bien","GOBIERNO AUTONOMO DESCENTRALIZADO MUNICIPAL DEL CANTON CHINCHIPE","Zamora Chinchipe","ERAZO AGUIRRE FREDDY GONZALO",76.25,7.6249998528510332E-5,"GAD Municipales","Régimen de GAD","GAD y sus EP","Febrero"]
["016-GADMCCH-A-2021-00003","TUBOS DE PVC","Bien","GOBIERNO AUTONOMO DESCENTRALIZADO MUNICIPAL DEL CANTON CHINCHIPE","Zamora Chinchipe","ERAZO AGUIRRE FREDDY GONZALO",4352.1000000000004,4.3521001935005188E-3,"GAD Municipales","Régimen de GAD","GAD y sus EP","Febrero"]
["016-GADMCCH-A-2021-00003","UNION PARA TUBOS DE ACUEDUCTO EN PVC","Bien","GOBIERNO AUTONOMO DESCENTRALIZADO MUNICIPAL DEL CANTON CHINCHIPE","Zamora Chinchipe","ERAZO AGUIRRE FREDDY GONZALO",403.1,4.0310001350007951E-4,"GAD Municipales","Régimen de GAD","GAD y sus EP","Febrero"]
["055-2021-00001","OXIGENO LIQUIDO","Bien","HOSPITAL GENERAL DR. LIBORIO PANCHANA SOTOMAYOR","Santa Elena","LINDE ECUADOR S.A.",147490,0.147489994764328,"Administración del Estado","Salud","Gobierno Central y sus EP","Mayo"]
["055-2021-00001","OXÍGENO MEDICINAL","Bien","HOSPITAL GENERAL DR. LIBORIO PANCHANA SOTOMAYOR","Santa Elena","LINDE ECUADOR S.A.",22960,2.2959999740123749E-2,"Administración del Estado","Salud","Gobierno Central y sus EP","Mayo"]
["055-2021-00002","PROPOFOL - LÍQUIDO PARENTERAL- 10 MG/ML","Bien","HOSPITAL GENERAL DR. LIBORIO PANCHANA SOTOMAYOR","Santa Elena","MEDICANTES S.A.",112000,0.1120000034570694,"Administración del Estado","Salud","Gobierno Central y sus EP","Mayo"]
["055-2021-00002","ROCURONIO, BROMURO - LÍQUIDO PARENTERAL- 10 MG/ML","Bien","HOSPITAL GENERAL DR. LIBORIO PANCHANA SOTOMAYOR","Santa Elena","MEDICANTES S.A.",140000,0.14000000059604645,"Administración del Estado","Salud","Gobierno Central y sus EP","Mayo"]
["055-2021-00003","INSUMOS DE USO GENERAL","Bien","HOSPITAL GENERAL DR. LIBORIO PANCHANA SOTOMAYOR","Santa Elena","PROAÑO FIERRO MARIA RITTA",196024.95999999999,0.19602495431900024,"Administración del Estado","Salud","Gobierno Central y sus EP","Mayo"]
["055-2021-00005","REACTIVOS PARA ANALISIS CELULAR","Bien","HOSPITAL GENERAL DR. LIBORIO PANCHANA SOTOMAYOR","Santa Elena","IMPORTADORA DISTRIBUIDORA MAKOLECUADOR CIA. LTDA.",90444.7,9.0444698929786682E-2,"Administración del Estado","Salud","Gobierno Central y sus EP","Mayo"]
["055-2021-00010","REACTIVOS PARA ANALISIS CELULAR","Bien","HOSPITAL GENERAL DR. LIBORIO PANCHANA SOTOMAYOR","Santa Elena","MEDIBAC-INC S.A.",80020,8.0020003020763397E-2,"Administración del Estado","Salud","Gobierno Central y sus EP","Mayo"]
["062-00001","SERVICIOS DE ALQUILER DE EQUIPO  CON O SIN OPCION DE COMPRA  DE EQUIPOS PARA LA CONSTRUCCION  O DEMOLICION DE EDIFICIOS PARA TRABAJOS DE INGENIERIA CIVIL  CON OPERARIOS Y SERVICIOS OPERATIVOS PROPORCIONADOS POR LOS MISMOS","Servicio","GAD MUNICIPAL DE AZOGUES","Cañar","TENEZACA BRAVO TELMO ABSALON",10000,9.9999997764825821E-3,"GAD Municipales","Régimen de GAD","GAD y sus EP","Marzo"]
["062-00002","PIEDRA PARTIDA O TRITURADA","Bien","GAD MUNICIPAL DE AZOGUES","Cañar","CALLE CORDERO SEGUNDO FERNANDO",16000,1.6000000759959221E-2,"GAD Municipales","Régimen de GAD","GAD y sus EP","Mayo"]
["158-A-GADMCH-2020-00001","TUBERIAS PARA EL TRANSPORTE DE AGUA","Bien","GOBIERNO AUTONOMO DESCENTRALIZADO MUNICIPAL DE CHORDELEG","Azuay","VAZQUEZ VERA MARIA CRISTINA",10099,1.0099000297486782E-2,"GAD Municipales","Régimen de GAD","GAD y sus EP","Febrero"]
["158-A-GADMCH-2020-00003","OTROS SERVICIOS DE ALQUILER RELATIVOS A EXCAVADORAS","Servicio","GOBIERNO AUTONOMO DESCENTRALIZADO MUNICIPAL DE CHORDELEG","Azuay","NEIRA PATIÑO CESAR OSWALDO",920,9.2000002041459084E-4,"GAD Municipales","Régimen de GAD","GAD y sus EP","Febrero"]
["158-A-GADMCH-2020-00004","OTROS SERVICIOS DE ALQUILER RELATIVOS A EXCAVADORAS","Servicio","GOBIERNO AUTONOMO DESCENTRALIZADO MUNICIPAL DE CHORDELEG","Azuay","SOCIEDAD MINERA GUALACEO S.A. SOMIGU",5807,5.8070002123713493E-3,"GAD Municipales","Régimen de GAD","GAD y sus EP","Febrero"]
["158-A-GADMCH-2020-00005","CONSTRUCCION DE OBRAS DE PROTECCION DE MARGENES DE RIOS","Servicio","GOBIERNO AUTONOMO DESCENTRALIZADO MUNICIPAL DE CHORDELEG","Azuay","PINGUIL ZHUMI SEGUNDO FRANCISCO",1450,1.449999981559813E-3,"GAD Municipales","Régimen de GAD","GAD y sus EP","Febrero"]
["2021-0045-00001","SERVICIOS GENERALES DE CONSTRUCCION  EN CARRETERAS (EXCEPTO CARRETERAS SOBREELEVADAS), CAMINOS","Obra","ELECTRO GENERADORA DEL AUSTRO S.A. ","Azuay","GUEVAZCO COMPAÑIA LIMITADA",178496,0.17849600315093994,"Sociedades Anónimas","Recursos Naturales","Otros","Marzo"]
["2021-0045-00002","BOMBA DE VACIO DE ABSORCION","Bien","ELECTRO GENERADORA DEL AUSTRO S.A. ","Azuay","AGRO - SISTEMRIEGO CIA. LTDA.",495,4.949999856762588E-4,"Sociedades Anónimas","Recursos Naturales","Otros","Marzo"]
["2021-0045-00002","MANGO DE METAL PLASTIFICADO PARA ESCOBA","Bien","ELECTRO GENERADORA DEL AUSTRO S.A. ","Azuay","AGRO - SISTEMRIEGO CIA. LTDA.",62.72,6.2719998823013157E-5,"Sociedades Anónimas","Recursos Naturales","Otros","Marzo"]
["2021-0045-00002","MANGUERA CORRUGADA","Bien","ELECTRO GENERADORA DEL AUSTRO S.A. ","Azuay","AGRO - SISTEMRIEGO CIA. LTDA.",52.52,5.2520001190714538E-5,"Sociedades Anónimas","Recursos Naturales","Otros","Marzo"]
["2021-0045-00002","VARILLAS DE ASPIRADOR","Bien","ELECTRO GENERADORA DEL AUSTRO S.A. ","Azuay","AGRO - SISTEMRIEGO CIA. LTDA.",28,2.8000000384054147E-5,"Sociedades Anónimas","Recursos Naturales","Otros","Marzo"]
["2021-0045-00003","ABRAZADERA UNIVERSAL","Bien","ELECTRO GENERADORA DEL AUSTRO S.A. ","Azuay","COMERCIAL CHAVEZ CUNALATA CH-C CIA. LTDA.",23.16,2.3160000637290068E-5,"Sociedades Anónimas","Recursos Naturales","Otros","Marzo"]
["2021-0045-00004","CARRETILLAS","Bien","ELECTRO GENERADORA DEL AUSTRO S.A. ","Azuay","VIVAR REINOSO JULIA JENNY",412.24020000000002,4.1224018787033856E-4,"Sociedades Anónimas","Recursos Naturales","Otros","Marzo"]
["2021-0045-00005","PALAS","Bien","ELECTRO GENERADORA DEL AUSTRO S.A. ","Azuay","VIVAR REINOSO JULIA JENNY",111.9636,1.1196359992027283E-4,"Sociedades Anónimas","Recursos Naturales","Otros","Marzo"]
["2021-0045-00006","ANTIOXIDANTES","Bien","ELECTRO GENERADORA DEL AUSTRO S.A. ","Azuay","VIVAR REINOSO JULIA JENNY",264.88,2.6487998547963798E-4,"Sociedades Anónimas","Recursos Naturales","Otros","Marzo"]
["2021-0045-00007","LUBRICANTES SINTETICOS BASADOS EN ESTERES FOSFORICOS","Bien","ELECTRO GENERADORA DEL AUSTRO S.A. ","Azuay","CONAUTO C.A.",3331.4196999999999,3.3314197789877653E-3,"Sociedades Anónimas","Recursos Naturales","Otros","Marzo"]
["2021-0045-00008","HIDROLAVADORA","Bien","ELECTRO GENERADORA DEL AUSTRO S.A. ","Azuay","HERAS PARRA GERARDO ROLENDIO",6270.95,6.2709501944482327E-3,"Sociedades Anónimas","Recursos Naturales","Otros","Marzo"]
["2021-0045-00009","LINTERNAS RECARGABLES DE SEGURIDAD ","Bien","ELECTRO GENERADORA DEL AUSTRO S.A. ","Azuay","COMERCIAL KYWI S.A.",333.3,3.333000058773905E-4,"Sociedades Anónimas","Recursos Naturales","Otros","Marzo"]
["2021-0045-00010","ANTIOXIDANTES","Bien","ELECTRO GENERADORA DEL AUSTRO S.A. ","Azuay","COMERCIAL KYWI S.A.",77.356800000000007,7.7356802648864686E-5,"Sociedades Anónimas","Recursos Naturales","Otros","Marzo"]
["2021-0045-00011","PINTURAS Y BARNICES (INCLUSO ESMALTES Y LACAS) BASADOS EN POLIMEROS SINTETICOS O POLIMEROS NATURALES QUIMICAMENTE MODIFICADOS, DISPERSOS O DISUELTOS EN UN MEDIO NO ACUOSO; PINTURAS ANTICORROSIVAS, PLASTICOS EN DISOLVENTES ORGANICOS VOLATILES,PINTURAS CONT","Bien","ELECTRO GENERADORA DEL AUSTRO S.A. ","Azuay","PALACIOS DELGADO JUAN LEONARDO",578.4,5.7839998044073582E-4,"Sociedades Anónimas","Recursos Naturales","Otros","Marzo"]
["2021-0045-00012","LIMPIA CONTACTOS SECO","Bien","ELECTRO GENERADORA DEL AUSTRO S.A. ","Azuay","SPARTAN DEL ECUADOR PRODUCTOS QUIMICOS S.A.",1540,1.5399999683722854E-3,"Sociedades Anónimas","Recursos Naturales","Otros","Marzo"]
["2021-0045-00013","ANTICORROSIVOS ","Bien","ELECTRO GENERADORA DEL AUSTRO S.A. ","Azuay","BARZALLO CORREA JOSE EDUARDO",80.36,8.0359997809864581E-5,"Sociedades Anónimas","Recursos Naturales","Otros","Marzo"]
["2021-0045-00013","LAMINAS, ROLLOS Y EMPAQUES","Bien","ELECTRO GENERADORA DEL AUSTRO S.A. ","Azuay","BARZALLO CORREA JOSE EDUARDO",40,3.9999998989515007E-5,"Sociedades Anónimas","Recursos Naturales","Otros","Marzo"]
["2021-0045-00013","RODAMIENTOS A BOLAS","Bien","ELECTRO GENERADORA DEL AUSTRO S.A. ","Azuay","BARZALLO CORREA JOSE EDUARDO",230.35919999999999,2.3035920457914472E-4,"Sociedades Anónimas","Recursos Naturales","Otros","Marzo"]
["2021-0045-00013","SELLOS MECANICOS","Bien","ELECTRO GENERADORA DEL AUSTRO S.A. ","Azuay","BARZALLO CORREA JOSE EDUARDO",107.13800000000001,1.0713800293160602E-4,"Sociedades Anónimas","Recursos Naturales","Otros","Marzo"]
["2021-0045-00014","TABLEROS ELECTRICOS PARA UNIDADES HERMETICAS","Bien","ELECTRO GENERADORA DEL AUSTRO S.A. ","Azuay","DATALIGHTS CIA.LTDA.",18000,1.7999999225139618E-2,"Sociedades Anónimas","Recursos Naturales","Otros","Marzo"]
["2021-0045-00015","CABLE CONCENTRICO DE CU XLPE 1X10 MAS 10 MM2","Bien","ELECTRO GENERADORA DEL AUSTRO S.A. ","Azuay","WDS-ENERGYGROUP INGENIERIA CONSTRUCCION & IMPORTACIONES S.A",3149.25,3.1492500565946102E-3,"Sociedades Anónimas","Recursos Naturales","Otros","Abril"]
["2021-0045-00015","CONECTORES - INTERRUPTORES","Bien","ELECTRO GENERADORA DEL AUSTRO S.A. ","Azuay","WDS-ENERGYGROUP INGENIERIA CONSTRUCCION & IMPORTACIONES S.A",1001.76,1.0017600143328309E-3,"Sociedades Anónimas","Recursos Naturales","Otros","Abril"]
["2021-0045-00015","CONTROL Y SENSORES","Bien","ELECTRO GENERADORA DEL AUSTRO S.A. ","Azuay","WDS-ENERGYGROUP INGENIERIA CONSTRUCCION & IMPORTACIONES S.A",70236.490000000005,7.0236489176750183E-2,"Sociedades Anónimas","Recursos Naturales","Otros","Abril"]
["2021-0045-00015","CONVERTIDORES DE AC/DC","Bien","ELECTRO GENERADORA DEL AUSTRO S.A. ","Azuay","WDS-ENERGYGROUP INGENIERIA CONSTRUCCION & IMPORTACIONES S.A",5457.69,5.4576899856328964E-3,"Sociedades Anónimas","Recursos Naturales","Otros","Abril"]
["2021-0045-00015","MODULOS","Bien","ELECTRO GENERADORA DEL AUSTRO S.A. ","Azuay","WDS-ENERGYGROUP INGENIERIA CONSTRUCCION & IMPORTACIONES S.A",907.73,9.0773002011701465E-4,"Sociedades Anónimas","Recursos Naturales","Otros","Abril"]
["2021-0045-00015","OTRAS FUENTES DE PODER","Bien","ELECTRO GENERADORA DEL AUSTRO S.A. ","Azuay","WDS-ENERGYGROUP INGENIERIA CONSTRUCCION & IMPORTACIONES S.A",494.39,4.9439002759754658E-4,"Sociedades Anónimas","Recursos Naturales","Otros","Abril"]
["2021-0045-00015","PRESOSTATO PARA USO GENERAL","Bien","ELECTRO GENERADORA DEL AUSTRO S.A. ","Azuay","WDS-ENERGYGROUP INGENIERIA CONSTRUCCION & IMPORTACIONES S.A",3566.07,3.5660699941217899E-3,"Sociedades Anónimas","Recursos Naturales","Otros","Abril"]
["2021-0045-00015","SENSOR INDUCTIVO","Bien","ELECTRO GENERADORA DEL AUSTRO S.A. ","Azuay","WDS-ENERGYGROUP INGENIERIA CONSTRUCCION & IMPORTACIONES S.A",3384.5896000000002,3.3845896832644939E-3,"Sociedades Anónimas","Recursos Naturales","Otros","Abril"]
["2021-0045-00015","TABLEROS ELECTRICOS PARA UNIDADES HERMETICAS","Bien","ELECTRO GENERADORA DEL AUSTRO S.A. ","Azuay","WDS-ENERGYGROUP INGENIERIA CONSTRUCCION & IMPORTACIONES S.A",364.71,3.6470999475568533E-4,"Sociedades Anónimas","Recursos Naturales","Otros","Abril"]
["2021-0045-00015","TERMINALES Y CONECTORES DE CABLES","Bien","ELECTRO GENERADORA DEL AUSTRO S.A. ","Azuay","WDS-ENERGYGROUP INGENIERIA CONSTRUCCION & IMPORTACIONES S.A",478.8,4.7880000784061849E-4,"Sociedades Anónimas","Recursos Naturales","Otros","Abril"]
["2021-0045-00015","TERMOCUPLA","Bien","ELECTRO GENERADORA DEL AUSTRO S.A. ","Azuay","WDS-ENERGYGROUP INGENIERIA CONSTRUCCION & IMPORTACIONES S.A",4019.9400000000005,4.0199398063123226E-3,"Sociedades Anónimas","Recursos Naturales","Otros","Abril"]
["2021-0045-00016","SERVICIO DE LIMPIEZA DE AREAS OPERATIVAS Y DE INFLUENCIA","Servicio","ELECTRO GENERADORA DEL AUSTRO S.A. ","Azuay","RODAS LOPEZ OSWALDO AURELIO",32415.98,3.2415978610515594E-2,"Sociedades Anónimas","Recursos Naturales","Otros","Abril"]
["2021-0045-00017","ACERO LAMINADO EN U SEGUN ESPECIFICACION DEL CLIENTE","Obra","ELECTRO GENERADORA DEL AUSTRO S.A. ","Azuay","COELLO PALACIOS JAIME ROBERTO",12260,1.2260000221431255E-2,"Sociedades Anónimas","Recursos Naturales","Otros","Mayo"]
["2021-0045-00017","CHAPAS DE ALUMINIO ANTIDESLIZANTES ","Obra","ELECTRO GENERADORA DEL AUSTRO S.A. ","Azuay","COELLO PALACIOS JAIME ROBERTO",2100,2.099999925121665E-3,"Sociedades Anónimas","Recursos Naturales","Otros","Mayo"]
["2021-0045-00017","EXCAVACION DE ZANJAS","Obra","ELECTRO GENERADORA DEL AUSTRO S.A. ","Azuay","COELLO PALACIOS JAIME ROBERTO",88,8.800000068731606E-5,"Sociedades Anónimas","Recursos Naturales","Otros","Mayo"]
["2021-0045-00017","HORMIGON PREMEZCLADO","Obra","ELECTRO GENERADORA DEL AUSTRO S.A. ","Azuay","COELLO PALACIOS JAIME ROBERTO",775,7.7500002225860953E-4,"Sociedades Anónimas","Recursos Naturales","Otros","Mayo"]
["2021-0045-00017","NIVELACION DE EMPLAZAMIENTOS","Obra","ELECTRO GENERADORA DEL AUSTRO S.A. ","Azuay","COELLO PALACIOS JAIME ROBERTO",240,2.3999999393709004E-4,"Sociedades Anónimas","Recursos Naturales","Otros","Mayo"]
["2021-0045-00017","PASA MANOS DE ALUMINIO","Obra","ELECTRO GENERADORA DEL AUSTRO S.A. ","Azuay","COELLO PALACIOS JAIME ROBERTO",4620,4.6199997887015343E-3,"Sociedades Anónimas","Recursos Naturales","Otros","Mayo"]
["2021-0045-00017","PIEZAS DE MADERA USADAS CON FINES ESTRUCTURALES O DE SUSTENTO, EN LA CONSTRUCCION: ENCOFRADOS PARA HORMIGON, ANDAMIAJES, VIGAS, POSTES, ETC.","Obra","ELECTRO GENERADORA DEL AUSTRO S.A. ","Azuay","COELLO PALACIOS JAIME ROBERTO",450,4.4999999227002263E-4,"Sociedades Anónimas","Recursos Naturales","Otros","Mayo"]
["2021-0045-00017","PLATO DE ANCLAJE (PLACA) ELABORADO EN ACERO","Obra","ELECTRO GENERADORA DEL AUSTRO S.A. ","Azuay","COELLO PALACIOS JAIME ROBERTO",360,3.6000000545755029E-4,"Sociedades Anónimas","Recursos Naturales","Otros","Mayo"]
["2021-0045-00017","SERVICIO DE ALQUILER MOTORES - GENERADORES","Obra","ELECTRO GENERADORA DEL AUSTRO S.A. ","Azuay","COELLO PALACIOS JAIME ROBERTO",451.25,4.5125000178813934E-4,"Sociedades Anónimas","Recursos Naturales","Otros","Mayo"]
["2021-0045-00017","TUBOS  ESTRUCTURALES","Obra","ELECTRO GENERADORA DEL AUSTRO S.A. ","Azuay","COELLO PALACIOS JAIME ROBERTO",2250,2.2499999031424522E-3,"Sociedades Anónimas","Recursos Naturales","Otros","Mayo"]
["2021-0045-00018","SULFATO DE ALUMINIO","Bien","ELECTRO GENERADORA DEL AUSTRO S.A. ","Azuay","COMERCIALIZADORA GLOBE INDUSTRIES GLOBEINDSA S.A.",218.8,2.1880000713281333E-4,"Sociedades Anónimas","Recursos Naturales","Otros","Mayo"]
["2021-0045-00019","ENCHUFES  (CLAVIJAS)  Y  TOMAS  DE  CORRIENTE","Bien","ELECTRO GENERADORA DEL AUSTRO S.A. ","Azuay","COMERCIALIZADORA GLOBE INDUSTRIES GLOBEINDSA S.A.",82.199999999999989,8.2200000179000199E-5,"Sociedades Anónimas","Recursos Naturales","Otros","Mayo"]
["2021-0045-00019","INTERRUPTORES 10 A / BIPOLARES","Bien","ELECTRO GENERADORA DEL AUSTRO S.A. ","Azuay","COMERCIALIZADORA GLOBE INDUSTRIES GLOBEINDSA S.A.",56.3,5.6299999414477497E-5,"Sociedades Anónimas","Recursos Naturales","Otros","Mayo"]
["2021-0045-00019","PEGANTE LIQUIDO","Bien","ELECTRO GENERADORA DEL AUSTRO S.A. ","Azuay","COMERCIALIZADORA GLOBE INDUSTRIES GLOBEINDSA S.A.",129.25,1.2924999464303255E-4,"Sociedades Anónimas","Recursos Naturales","Otros","Mayo"]
["2021-0045-00020","BATERIAS HUMEDAS 12V, PARA VEHICULOS","Bien","ELECTRO GENERADORA DEL AUSTRO S.A. ","Azuay","IMPORTADORA SU BATERIA IMSUBAT CIA LTDA",237.6,2.3760000476613641E-4,"Sociedades Anónimas","Recursos Naturales","Otros","Mayo"]
["2021-0045-00021","BOMBAS CENTRIFUGAS PARA LIQUIDOS","Bien","ELECTRO GENERADORA DEL AUSTRO S.A. ","Azuay","MAQUINARIAS HENRIQUES C.A.",2828.1,2.8280999977141619E-3,"Sociedades Anónimas","Recursos Naturales","Otros","Mayo"]
["2021-0045-00021","BOMBAS DE DOSIFICACION DE SOSA CAUSTICA ","Bien","ELECTRO GENERADORA DEL AUSTRO S.A. ","Azuay","MAQUINARIAS HENRIQUES C.A.",772.92,7.7291997149586678E-4,"Sociedades Anónimas","Recursos Naturales","Otros","Mayo"]
["2021-0045-00021","PRESOSTATO PARA BOMBAS","Bien","ELECTRO GENERADORA DEL AUSTRO S.A. ","Azuay","MAQUINARIAS HENRIQUES C.A.",95.09,9.5089999376796186E-5,"Sociedades Anónimas","Recursos Naturales","Otros","Mayo"]
["2021-0045-00022","OTROS ACCESORIOS PARA TUBOS O CANOS, DE HIERRO O ACERO INOXIDABLE:CAJETINES PARA ENCHUFES.","Bien","ELECTRO GENERADORA DEL AUSTRO S.A. ","Azuay","SIGUENCIA ALVAREZ CRISTIAN FABIAN",87.5,8.7499996880069375E-5,"Sociedades Anónimas","Recursos Naturales","Otros","Mayo"]
["2021-0045-00023","DISCO DURO","Bien","ELECTRO GENERADORA DEL AUSTRO S.A. ","Azuay","COMERCIALIZADORA GLOBE INDUSTRIES GLOBEINDSA S.A.",687.48,6.8747997283935547E-4,"Sociedades Anónimas","Recursos Naturales","Otros","Mayo"]
["2021-0045-00024","RELES PARA UN VOLTAJE MAXIMO DE 1000 V:  PARA PROTECCION","Bien","ELECTRO GENERADORA DEL AUSTRO S.A. ","Azuay","COMERCIALIZADORA GLOBE INDUSTRIES GLOBEINDSA S.A.",1680.94,1.6809400403872132E-3,"Sociedades Anónimas","Recursos Naturales","Otros","Mayo"]
["32-GG-2021-00001","SERVICIOS DE ALMUERZOS Y REFRIGERIOS PARA INSTITUCIONES","Bien","EMPRESA PUBLICA DE AGUA ALCANTARILLADO Y ASEO DE PASAJE AGUAPAS EP","El Oro","NAGUA LOJA CHRISTOPHER RONALDO",673.75,6.7375000799074769E-4,"EP de los GAD","Desarrollo Urbano y Vivienda","GAD y sus EP","Marzo"]
["32-GG-2021-00002","SERVICIOS ESPECIALIZADOS DE CONSTRUCCION RELACIONADOS CON ESTRUCTURAS DE ACERO","Servicio","EMPRESA PUBLICA DE AGUA ALCANTARILLADO Y ASEO DE PASAJE AGUAPAS EP","El Oro","LLIGUIN CASTRO JUAN ENRIQUE",9329.99,9.3299895524978638E-3,"EP de los GAD","Desarrollo Urbano y Vivienda","GAD y sus EP","Marzo"]
["32-GG-2021-00003","OTROS SERVICIOS DE ALQUILER RELATIVOS A EXCAVADORAS","Servicio","EMPRESA PUBLICA DE AGUA ALCANTARILLADO Y ASEO DE PASAJE AGUAPAS EP","El Oro","ECONDI S A",6250,6.2500000931322575E-3,"EP de los GAD","Desarrollo Urbano y Vivienda","GAD y sus EP","Abril"]
["32-GG-2021-00004","SERVICIOS DE ALMUERZOS Y REFRIGERIOS PARA INSTITUCIONES","Bien","EMPRESA PUBLICA DE AGUA ALCANTARILLADO Y ASEO DE PASAJE AGUAPAS EP","El Oro","NAGUA LOJA CHRISTOPHER RONALDO",404.25,4.0424999315291643E-4,"EP de los GAD","Desarrollo Urbano y Vivienda","GAD y sus EP","Abril"]
["32-GG-2021-00005","SERVICIOS DE ALMUERZOS Y REFRIGERIOS PARA INSTITUCIONES","Servicio","EMPRESA PUBLICA DE AGUA ALCANTARILLADO Y ASEO DE PASAJE AGUAPAS EP","El Oro","NAGUA LOJA CHRISTOPHER RONALDO",244.75,2.4475000100210309E-4,"EP de los GAD","Desarrollo Urbano y Vivienda","GAD y sus EP","Abril"]
["32-GG-2021-00006","BOMBA DE AGUA","Bien","EMPRESA PUBLICA DE AGUA ALCANTARILLADO Y ASEO DE PASAJE AGUAPAS EP","El Oro","VALVERDE GALLARDO JOSE MIGUEL",3160,3.160000080242753E-3,"EP de los GAD","Desarrollo Urbano y Vivienda","GAD y sus EP","Mayo"]
["32-GG-2021-00006","BOMBAS ELECTRICAS PARA COMBUSTIBLES","Bien","EMPRESA PUBLICA DE AGUA ALCANTARILLADO Y ASEO DE PASAJE AGUAPAS EP","El Oro","VALVERDE GALLARDO JOSE MIGUEL",2370,2.369999885559082E-3,"EP de los GAD","Desarrollo Urbano y Vivienda","GAD y sus EP","Mayo"]
["62-DGCP-2021-00002","OTRAS OBRAS DE INGENIERIA CIVIL","Obra","GOBIERNO PROVINCIAL DE PICHINCHA","Pichincha","QUINTANA VILAC LUIS EDUARDO",347152.99,0.34715297818183899,"GAD Provinciales","Régimen de GAD","GAD y sus EP","Abril"]
["CNEL-RE-0185-2020-00001","MAQUINAS-HERRAMIENTA DE TRABAJAR METALES, POLIVALENTES, ELECTRICAS","Bien","EMPRESA ELÉCTRICA PÚBLICA ESTRATÉGICA CORPORACIÓN NACIONAL DE ELECTRICIDAD CNEL EP","Guayas","ACRETI S.A.",12179488.539999999,12.179488182067871,"EP de la Función Ejecutiva","Recursos Naturales","Gobierno Central y sus EP","Marzo"]
["EME-GADMM-001-2021-00001","CONSTRUCCION DE BOVEDAS ","Obra","GOBIERNO AUTONOMO DESCENTRALIZADO MUNICIPAL DE MONTUFAR","Carchi","PROAÑO VÁSQUEZ EDWIN RICARDO",82999.92,8.2999922335147858E-2,"GAD Municipales","Régimen de GAD","GAD y sus EP","Marzo"]
["EMERG-001-GADPC-2021-00001","OTROS SERVICIOS DE ALQUILER RELATIVOS A MAQUINAS DE CARGA FRONTAL, ETC.","Servicio","GOB. PROV. DEL CAÑAR","Cañar","INDUCTROC S.A.",22015,2.2014999762177467E-2,"GAD Provinciales","Régimen de GAD","GAD y sus EP","Abril"]
["EMERG-001-GADPC-2021-00002","OTROS SERVICIOS DE ALQUILER RELATIVOS A MAQUINAS DE CARGA FRONTAL, ETC.","Servicio","GOB. PROV. DEL CAÑAR","Cañar","TENEZACA BRAVO TELMO ABSALON",16730,1.6729999333620071E-2,"GAD Provinciales","Régimen de GAD","GAD y sus EP","Abril"]
["EMERG-001-GADPC-2021-00003","PIEDRA PARTIDA O TRITURADA","Bien","GOB. PROV. DEL CAÑAR","Cañar","CADMECORP ASOCIADOS S.A.",21100,2.10999995470047E-2,"GAD Provinciales","Régimen de GAD","GAD y sus EP","Abril"]
["EMERG-001-GADPC-2021-00004","SERVICIOS DE GESTION DE PROYECTOS RELACIONADOS CON LA CONSTRUCCION DE OBRAS DE INGENIERIA CIVIL DE TUBERIAS","Obra","GOB. PROV. DEL CAÑAR","Cañar","MOROCHO OCHOA LUIS EMILIO",15150.9815,1.5150981955230236E-2,"GAD Provinciales","Régimen de GAD","GAD y sus EP","Mayo"]
["GADMCC-DJ-2021-01-00001","OTRAS OBRAS DE INGENIERIA CIVIL","Obra","GOBIERNO AUTONOMO DESCENTRALIZADO MUNICIPAL DEL CANTON CEVALLOS","Tungurahua","LARA PAZMIÑO CARLOS ARTURO",108609.34,0.10860934108495712,"GAD Municipales","Régimen de GAD","GAD y sus EP","Febrero"]
["GADMCH-2021-A-0082-00001","PIPETA","Bien","MUNICIPIO DE CHONE","Manabí","BIOGENGTLAB S.A.",10000,9.9999997764825821E-3,"GAD Municipales","Régimen de GAD","GAD y sus EP","Abril"]
["GADMCH-2021-A-038-00001","OTRAS OBRAS DE INGENIERIA CIVIL","Obra","MUNICIPIO DE CHONE","Manabí","MOREIRA MORALES VERDI ANTONIO",115960,0.11596000194549561,"GAD Municipales","Régimen de GAD","GAD y sus EP","Abril"]
["GADMCH-2021-A-038-00002","ALQUILER DE EQUIPO CAMINERO","Servicio","MUNICIPIO DE CHONE","Manabí","CONSTRUCJOBS",105872,0.10587199777364731,"GAD Municipales","Régimen de GAD","GAD y sus EP","Abril"]
["GADMCH-2021-A-038-00003","SUMINISTRO DE AGUA EN TANQUEROS","Servicio","MUNICIPIO DE CHONE","Manabí","VERA MANZABA RITTER RENAN",63000,6.3000001013278961E-2,"GAD Municipales","Régimen de GAD","GAD y sus EP","Abril"]
["GADMCH-2021-A-038-00004","AGREGADOS PETREOS","Bien","MUNICIPIO DE CHONE","Manabí","MEGAROK S.A.",10782.5,1.0782499797642231E-2,"GAD Municipales","Régimen de GAD","GAD y sus EP","Abril"]
["GADMCH-2021-A-038-00005","SERVICIOS DE MANTENIMIENTO CORRECTIVO Y REPARACION DE VEHICULOS DE MOTOR","Servicio","MUNICIPIO DE CHONE","Manabí","AQUAKLEANER S.A.",44642.86,4.46428582072258E-2,"GAD Municipales","Régimen de GAD","GAD y sus EP","Abril"]
["GADMCH-2021-A-038-00006","TRANSPORTE POR CARRETERA DE PRODUCTOS SECOS A GRANEL COMO  ARENA, CARBON, ETC.","Servicio","MUNICIPIO DE CHONE","Manabí","TRANSPORTES Y SERVICIOS TRANSRIVENECA S.A.",22336.799999999999,2.2336799651384354E-2,"GAD Municipales","Régimen de GAD","GAD y sus EP","Abril"]
["GADMCH-2021-A-038-00007","OTRAS OBRAS DE INGENIERIA CIVIL","Obra","MUNICIPIO DE CHONE","Manabí","ALCIVAR MEZA MARA SHAKIRA",132789.70000000001,0.13278970122337341,"GAD Municipales","Régimen de GAD","GAD y sus EP","Mayo"]
["GADMCN-RA-EMG-048-20-00001","EXCAVADORA DE ORUGAS","Bien","GOBIERNO AUTONOMO DESCENTRALIZADO MUNICIPAL DEL CANTON NARANJAL GADMCN","Guayas","IASA S.A.",337000,0.33700001239776611,"GAD Municipales","Régimen de GAD","GAD y sus EP","Abril"]
["GADMCN-RA-EMG-048-20-00001","RETROEXCAVADORAS","Bien","GOBIERNO AUTONOMO DESCENTRALIZADO MUNICIPAL DEL CANTON NARANJAL GADMCN","Guayas","IASA S.A.",114000,0.11400000005960464,"GAD Municipales","Régimen de GAD","GAD y sus EP","Abril"]
["GADMCN-RA-EMG-048-20-00001","TRACTORES DE ORUGA: TRACTORRES DE ORUGA CON CABRESTANTE, ETC.","Bien","GOBIERNO AUTONOMO DESCENTRALIZADO MUNICIPAL DEL CANTON NARANJAL GADMCN","Guayas","IASA S.A.",243000,0.24300000071525574,"GAD Municipales","Régimen de GAD","GAD y sus EP","Abril"]
["GADPRCH-002-2021-00001","OTROS SERVICIOS DE ALQUILER RELATIVOS A TRACTORES PARA CONSTRUCCION Y MOVIMIENTO DE TIERRAS","Servicio","GOBIERNO AUTONOMO DESCENTRALIZADO DE LA PARROQUIA RURAL CHIRIJOS","Manabí","CEDEÑO GOROZABEL LUIS ALFREDO",1600,1.5999999595806003E-3,"GAD Parroquiales Rurales","Régimen de GAD","GAD y sus EP","Abril"]
["GGR-002-2021-00001","OTRAS OBRAS DE INGENIERIA CIVIL","Servicio","EMPRESA PUBLICA FLOTA PETROLERA ECUATORIANA -EP FLOPEC-","Esmeraldas","PADILLA LARA JUAN EUGENIO",24443,2.4443000555038452E-2,"EP de la Función Ejecutiva","Comunicaciones","Gobierno Central y sus EP","Marzo"]
["INSPI-DE-2021-0003-R-00001","BATA MANGA LARGA (MULTIUSO)","Bien","INSTITUTO NACIONAL DE INVESTIGACIÓN EN SALUD PUBLICA -INSPI- DR. LEOPOLDO IZQUIETA PÉREZ","Guayas","HERRERA CELA RODRIGO XAVIER",4830,4.8299999907612801E-3,"Administración del Estado","Salud","Gobierno Central y sus EP","Febrero"]
["INSPI-DE-2021-0003-R-00002","INSUMOS DE USO GENERAL","Bien","INSTITUTO NACIONAL DE INVESTIGACIÓN EN SALUD PUBLICA -INSPI- DR. LEOPOLDO IZQUIETA PÉREZ","Guayas","TEXTIQUIM CIA. LTDA.",6380,6.380000151693821E-3,"Administración del Estado","Salud","Gobierno Central y sus EP","Febrero"]
["INSPI-DE-2021-0003-R-00003","SERVICIOS DE TRABAJOS DE CONSTRUCCION ESPECIALIZADOS RELACIONADOS CON LA INSTALACION DE LA RED DE CABLES ELECTRICOS  DE APARATOS EN EDIFICIOS Y OTRAS OBRAS DE CONSTRUCCION","Servicio","INSTITUTO NACIONAL DE INVESTIGACIÓN EN SALUD PUBLICA -INSPI- DR. LEOPOLDO IZQUIETA PÉREZ","Guayas","LAYMAN PIZARRO GABRIEL ALBERTO",72999.34,7.2999343276023865E-2,"Administración del Estado","Salud","Gobierno Central y sus EP","Febrero"]
["INSPI-DE-2021-0003-R-00004","REACTIVOS COMPUESTOS PARA DIAGNOSTICO O LABORATORIO N.C.P.: SOBRE SOPORTE DE PAPEL O CARTON.","Bien","INSTITUTO NACIONAL DE INVESTIGACIÓN EN SALUD PUBLICA -INSPI- DR. LEOPOLDO IZQUIETA PÉREZ","Guayas","LABOMERSA S.A.",62578.15,6.2578149139881134E-2,"Administración del Estado","Salud","Gobierno Central y sus EP","Marzo"]
["INSPI-DE-2021-0003-R-00005","SERVICIOS DE TECHADO E IMPERMEABILIZACION  DE TECHOS, TRABAJOS DE CONSTRUCCION ESPECIALIZADOS CON LA INSTALACION DE TEJADOS, TRABAJO  DE IMPERMEABILIZACION ","Servicio","INSTITUTO NACIONAL DE INVESTIGACIÓN EN SALUD PUBLICA -INSPI- DR. LEOPOLDO IZQUIETA PÉREZ","Guayas","MASSUH RAMIREZ YAMIL MIGUEL",10255.5,1.0255499742925167E-2,"Administración del Estado","Salud","Gobierno Central y sus EP","Marzo"]
["INSPI-DE-2021-0003-R-00006","INSUMOS DE USO GENERAL","Bien","INSTITUTO NACIONAL DE INVESTIGACIÓN EN SALUD PUBLICA -INSPI- DR. LEOPOLDO IZQUIETA PÉREZ","Guayas","LABOMERSA S.A.",67423,6.7423000931739807E-2,"Administración del Estado","Salud","Gobierno Central y sus EP","Marzo"]
["INSPI-DE-2021-0036-R-00001","REACTIVOS COMPUESTOS PARA DIAGNOSTICO O LABORATORIO N.C.P.: SOBRE SOPORTE DE PAPEL O CARTON.","Bien","INSTITUTO NACIONAL DE INVESTIGACIÓN EN SALUD PUBLICA -INSPI- DR. LEOPOLDO IZQUIETA PÉREZ","Guayas","BIOMOL ECUADOR CIA. LTDA.",155741.82999999999,0.15574182569980621,"Administración del Estado","Salud","Gobierno Central y sus EP","Mayo"]
["INSPI-DE-2021-0036-R-00002","BOTA DE CAUCHO CON PUNTA DE ACERO","Bien","INSTITUTO NACIONAL DE INVESTIGACIÓN EN SALUD PUBLICA -INSPI- DR. LEOPOLDO IZQUIETA PÉREZ","Guayas","MV IMPORTACIONES MV-IMP CIA. LTDA.",130,1.3000000035390258E-4,"Administración del Estado","Salud","Gobierno Central y sus EP","Mayo"]
["INSPI-DE-2021-0036-R-00002","GAFAS PROTECTORAS TRANSPARENTES","Bien","INSTITUTO NACIONAL DE INVESTIGACIÓN EN SALUD PUBLICA -INSPI- DR. LEOPOLDO IZQUIETA PÉREZ","Guayas","MV IMPORTACIONES MV-IMP CIA. LTDA.",84,8.3999999333173037E-5,"Administración del Estado","Salud","Gobierno Central y sus EP","Mayo"]
["INSPI-DE-2021-0036-R-00002","INSUMOS DE USO GENERAL","Bien","INSTITUTO NACIONAL DE INVESTIGACIÓN EN SALUD PUBLICA -INSPI- DR. LEOPOLDO IZQUIETA PÉREZ","Guayas","MV IMPORTACIONES MV-IMP CIA. LTDA.",15347.84,1.5347840264439583E-2,"Administración del Estado","Salud","Gobierno Central y sus EP","Mayo"]
["INSPI-DE-2021-0036-R-00002","OVEROL EN IMPERMEABLE","Bien","INSTITUTO NACIONAL DE INVESTIGACIÓN EN SALUD PUBLICA -INSPI- DR. LEOPOLDO IZQUIETA PÉREZ","Guayas","MV IMPORTACIONES MV-IMP CIA. LTDA.",3120,3.1200000084936619E-3,"Administración del Estado","Salud","Gobierno Central y sus EP","Mayo"]
["INSPI-DE-2021-0036-R-00002","SERVICIO DE CONFECCION DE ROPA DE TRABAJO","Bien","INSTITUTO NACIONAL DE INVESTIGACIÓN EN SALUD PUBLICA -INSPI- DR. LEOPOLDO IZQUIETA PÉREZ","Guayas","MV IMPORTACIONES MV-IMP CIA. LTDA.",7482.5,7.4824998155236244E-3,"Administración del Estado","Salud","Gobierno Central y sus EP","Mayo"]
["INSPI-DE-2021-0036-R-00002","ZAPATONES","Bien","INSTITUTO NACIONAL DE INVESTIGACIÓN EN SALUD PUBLICA -INSPI- DR. LEOPOLDO IZQUIETA PÉREZ","Guayas","MV IMPORTACIONES MV-IMP CIA. LTDA.",2116.8000000000002,2.1168000530451536E-3,"Administración del Estado","Salud","Gobierno Central y sus EP","Mayo"]
["INSPI-DE-2021-0036-R-00003","REACTIVOS COMPUESTOS PARA DIAGNOSTICO O LABORATORIO N.C.P.: SOBRE SOPORTE DE PAPEL O CARTON.","Bien","INSTITUTO NACIONAL DE INVESTIGACIÓN EN SALUD PUBLICA -INSPI- DR. LEOPOLDO IZQUIETA PÉREZ","Guayas","VENEGAS OLMEDO GUSTAVO ABDON",540,5.3999997908249497E-4,"Administración del Estado","Salud","Gobierno Central y sus EP","Mayo"]
["MSP-HGNDC-2021-014-R-00001","GORRO DESCARTABLE PARA CIRUJANO ","Bien","HOSPITAL GENERAL DR. NAPOLEON DÁVILA CÓRDOVA","Manabí","MOREIRA JEREMIAS LUIS BERNARDO",76,7.599999662488699E-5,"Administración del Estado","Salud","Gobierno Central y sus EP","Abril"]
["MSP-HGNDC-2021-014-R-00001","MASCARILLAS DE PROTECCION","Bien","HOSPITAL GENERAL DR. NAPOLEON DÁVILA CÓRDOVA","Manabí","MOREIRA JEREMIAS LUIS BERNARDO",1722,1.7219999572262168E-3,"Administración del Estado","Salud","Gobierno Central y sus EP","Abril"]
["MSP-HGNDC-2021-014-R-00002","GUANTES","Bien","HOSPITAL GENERAL DR. NAPOLEON DÁVILA CÓRDOVA","Manabí","OROZCO FLORES CRISTINA VALERIA",6200,6.2000001780688763E-3,"Administración del Estado","Salud","Gobierno Central y sus EP","Abril"]
["MSP-HGNDC-2021-014-R-00002","PRENDAS DE VESTIR PARA SEGURIDAD INDUSTRIAL","Bien","HOSPITAL GENERAL DR. NAPOLEON DÁVILA CÓRDOVA","Manabí","OROZCO FLORES CRISTINA VALERIA",595,5.9499999042600393E-4,"Administración del Estado","Salud","Gobierno Central y sus EP","Abril"]
["MSP-HGNDC-2021-014-R-00003","INSUMOS DE USO GENERAL","Bien","HOSPITAL GENERAL DR. NAPOLEON DÁVILA CÓRDOVA","Manabí","CRUZ RAMIREZ EDISON FERNANDO",13497.8,1.3497799634933472E-2,"Administración del Estado","Salud","Gobierno Central y sus EP","Abril"]
["MSP-HGNDC-2021-014-R-00003","JERINGAS,AGUJAS,CATETERES,CANULAS Y ARTICULOS ANALOGOS, AGUJAS TUBULARES DE METAL Y AGUJAS DE SUTURA","Bien","HOSPITAL GENERAL DR. NAPOLEON DÁVILA CÓRDOVA","Manabí","CRUZ RAMIREZ EDISON FERNANDO",8804.5,8.8045001029968262E-3,"Administración del Estado","Salud","Gobierno Central y sus EP","Abril"]
["MSP-HGNDC-2021-014-R-00004","OXIGENO","Bien","HOSPITAL GENERAL DR. NAPOLEON DÁVILA CÓRDOVA","Manabí","VERA ZAMBRANO FREYA ESPERANZA",13284,1.3283999636769295E-2,"Administración del Estado","Salud","Gobierno Central y sus EP","Abril"]
["MSP-HGNDC-2021-014-R-00005","REACTIVOS PARA ANALISIS CELULAR","Bien","HOSPITAL GENERAL DR. NAPOLEON DÁVILA CÓRDOVA","Manabí","VIBAG C.A.",23400,2.3399999365210533E-2,"Administración del Estado","Salud","Gobierno Central y sus EP","Abril"]
["MSP-HGNDC-2021-020-R-00001","ACETILCISTEÍNA","Bien","HOSPITAL GENERAL DR. NAPOLEON DÁVILA CÓRDOVA","Manabí","CORPORACION GREENMED S.A.",3813,3.8129999302327633E-3,"Administración del Estado","Salud","Gobierno Central y sus EP","Mayo"]
["MSP-HGNDC-2021-020-R-00001","ACIDO ASCORBICO 1 G. 6 AMP. 5 ML.","Bien","HOSPITAL GENERAL DR. NAPOLEON DÁVILA CÓRDOVA","Manabí","CORPORACION GREENMED S.A.",2200,2.199999988079071E-3,"Administración del Estado","Salud","Gobierno Central y sus EP","Mayo"]
["MSP-HGNDC-2021-020-R-00001","AGENTES GELATINAS","Bien","HOSPITAL GENERAL DR. NAPOLEON DÁVILA CÓRDOVA","Manabí","CORPORACION GREENMED S.A.",120,1.1999999696854502E-4,"Administración del Estado","Salud","Gobierno Central y sus EP","Mayo"]
["MSP-HGNDC-2021-020-R-00001","AMLODIPINA - SÓLIDO ORAL- 5 MG","Bien","HOSPITAL GENERAL DR. NAPOLEON DÁVILA CÓRDOVA","Manabí","CORPORACION GREENMED S.A.",400,3.9999998989515007E-4,"Administración del Estado","Salud","Gobierno Central y sus EP","Mayo"]
["MSP-HGNDC-2021-020-R-00001","AMPICILINA + SULBACTAM","Bien","HOSPITAL GENERAL DR. NAPOLEON DÁVILA CÓRDOVA","Manabí","CORPORACION GREENMED S.A.",1650,1.6499999910593033E-3,"Administración del Estado","Salud","Gobierno Central y sus EP","Mayo"]
["MSP-HGNDC-2021-020-R-00001","AZITROMICINA","Bien","HOSPITAL GENERAL DR. NAPOLEON DÁVILA CÓRDOVA","Manabí","CORPORACION GREENMED S.A.",1381.5,1.3815000420436263E-3,"Administración del Estado","Salud","Gobierno Central y sus EP","Mayo"]
["MSP-HGNDC-2021-020-R-00001","CALCIO GLUCONATO","Bien","HOSPITAL GENERAL DR. NAPOLEON DÁVILA CÓRDOVA","Manabí","CORPORACION GREENMED S.A.",96,9.6000003395602107E-5,"Administración del Estado","Salud","Gobierno Central y sus EP","Mayo"]
["MSP-HGNDC-2021-020-R-00001","CARBOHIDRATOS (DEXTROSA EN AGUA)","Bien","HOSPITAL GENERAL DR. NAPOLEON DÁVILA CÓRDOVA","Manabí","CORPORACION GREENMED S.A.",916,9.1599998995661736E-4,"Administración del Estado","Salud","Gobierno Central y sus EP","Mayo"]
["MSP-HGNDC-2021-020-R-00001","CARBONATO ACIDO DE SODIO (BICARBONATO DE SODIO)","Bien","HOSPITAL GENERAL DR. NAPOLEON DÁVILA CÓRDOVA","Manabí","CORPORACION GREENMED S.A.",308,3.0799998785369098E-4,"Administración del Estado","Salud","Gobierno Central y sus EP","Mayo"]
["MSP-HGNDC-2021-020-R-00001","CEFTRIAXONA","Bien","HOSPITAL GENERAL DR. NAPOLEON DÁVILA CÓRDOVA","Manabí","CORPORACION GREENMED S.A.",2220,2.2199999075382948E-3,"Administración del Estado","Salud","Gobierno Central y sus EP","Mayo"]
["MSP-HGNDC-2021-020-R-00001","CIPROFLOXACINA","Bien","HOSPITAL GENERAL DR. NAPOLEON DÁVILA CÓRDOVA","Manabí","CORPORACION GREENMED S.A.",1140,1.1399999493733048E-3,"Administración del Estado","Salud","Gobierno Central y sus EP","Mayo"]
["MSP-HGNDC-2021-020-R-00001","CLARITROMICINA","Bien","HOSPITAL GENERAL DR. NAPOLEON DÁVILA CÓRDOVA","Manabí","CORPORACION GREENMED S.A.",750,7.5000000651925802E-4,"Administración del Estado","Salud","Gobierno Central y sus EP","Mayo"]
["MSP-HGNDC-2021-020-R-00001","CLOPIDOGREL","Bien","HOSPITAL GENERAL DR. NAPOLEON DÁVILA CÓRDOVA","Manabí","CORPORACION GREENMED S.A.",800,7.9999997979030013E-4,"Administración del Estado","Salud","Gobierno Central y sus EP","Mayo"]
["MSP-HGNDC-2021-020-R-00001","CLORURO DE SODIO","Bien","HOSPITAL GENERAL DR. NAPOLEON DÁVILA CÓRDOVA","Manabí","CORPORACION GREENMED S.A.",10883.6,1.0883600451052189E-2,"Administración del Estado","Salud","Gobierno Central y sus EP","Mayo"]
["MSP-HGNDC-2021-020-R-00001","CLORURO POTASICO 14,9% 100 AMP. 5 ML.","Bien","HOSPITAL GENERAL DR. NAPOLEON DÁVILA CÓRDOVA","Manabí","CORPORACION GREENMED S.A.",200,1.9999999494757503E-4,"Administración del Estado","Salud","Gobierno Central y sus EP","Mayo"]
["MSP-HGNDC-2021-020-R-00001","COMPLEJO B  AMPOLLA X 10 ML","Bien","HOSPITAL GENERAL DR. NAPOLEON DÁVILA CÓRDOVA","Manabí","CORPORACION GREENMED S.A.",2100,2.099999925121665E-3,"Administración del Estado","Salud","Gobierno Central y sus EP","Mayo"]
["MSP-HGNDC-2021-020-R-00001","DEXMEDETOMIDINA - LÍQUIDO PARENTERAL- 100 MCG/ML (0,1 MG/ML)","Bien","HOSPITAL GENERAL DR. NAPOLEON DÁVILA CÓRDOVA","Manabí","CORPORACION GREENMED S.A.",12000,1.2000000104308128E-2,"Administración del Estado","Salud","Gobierno Central y sus EP","Mayo"]
["MSP-HGNDC-2021-020-R-00001","DOPAMINA","Bien","HOSPITAL GENERAL DR. NAPOLEON DÁVILA CÓRDOVA","Manabí","CORPORACION GREENMED S.A.",3.28,3.2800001008581603E-6,"Administración del Estado","Salud","Gobierno Central y sus EP","Mayo"]
["MSP-HGNDC-2021-020-R-00001","EMULSIONES GRASAS (LÍPIDOS)","Bien","HOSPITAL GENERAL DR. NAPOLEON DÁVILA CÓRDOVA","Manabí","CORPORACION GREENMED S.A.",220,2.2000000171829015E-4,"Administración del Estado","Salud","Gobierno Central y sus EP","Mayo"]
["MSP-HGNDC-2021-020-R-00001","ENALAPRIL","Bien","HOSPITAL GENERAL DR. NAPOLEON DÁVILA CÓRDOVA","Manabí","CORPORACION GREENMED S.A.",192,1.9200000679120421E-4,"Administración del Estado","Salud","Gobierno Central y sus EP","Mayo"]
["MSP-HGNDC-2021-020-R-00001","ENOXAPARINA","Bien","HOSPITAL GENERAL DR. NAPOLEON DÁVILA CÓRDOVA","Manabí","CORPORACION GREENMED S.A.",16900,1.6899999231100082E-2,"Administración del Estado","Salud","Gobierno Central y sus EP","Mayo"]
["MSP-HGNDC-2021-020-R-00001","EPINEFRINA (ADRENALINA)","Bien","HOSPITAL GENERAL DR. NAPOLEON DÁVILA CÓRDOVA","Manabí","CORPORACION GREENMED S.A.",25.2,2.5200000891345553E-5,"Administración del Estado","Salud","Gobierno Central y sus EP","Mayo"]
["MSP-HGNDC-2021-020-R-00001","ERITROPOYETINA","Bien","HOSPITAL GENERAL DR. NAPOLEON DÁVILA CÓRDOVA","Manabí","CORPORACION GREENMED S.A.",890,8.9000002481043339E-4,"Administración del Estado","Salud","Gobierno Central y sus EP","Mayo"]
["MSP-HGNDC-2021-020-R-00001","FENITOINA 50 MG/ML AMPOLLAS X 5 ML","Bien","HOSPITAL GENERAL DR. NAPOLEON DÁVILA CÓRDOVA","Manabí","CORPORACION GREENMED S.A.",183,1.829999964684248E-4,"Administración del Estado","Salud","Gobierno Central y sus EP","Mayo"]
["MSP-HGNDC-2021-020-R-00001","FITOMENADIONA","Bien","HOSPITAL GENERAL DR. NAPOLEON DÁVILA CÓRDOVA","Manabí","CORPORACION GREENMED S.A.",192,1.9200000679120421E-4,"Administración del Estado","Salud","Gobierno Central y sus EP","Mayo"]
["MSP-HGNDC-2021-020-R-00001","GENTAMICINA","Bien","HOSPITAL GENERAL DR. NAPOLEON DÁVILA CÓRDOVA","Manabí","CORPORACION GREENMED S.A.",203.4,2.0340000628493726E-4,"Administración del Estado","Salud","Gobierno Central y sus EP","Mayo"]
["MSP-HGNDC-2021-020-R-00001","HIDROCORTISONA","Bien","HOSPITAL GENERAL DR. NAPOLEON DÁVILA CÓRDOVA","Manabí","CORPORACION GREENMED S.A.",134,1.340000017080456E-4,"Administración del Estado","Salud","Gobierno Central y sus EP","Mayo"]
["MSP-HGNDC-2021-020-R-00001","IMIPENEM + CILASTATINA","Bien","HOSPITAL GENERAL DR. NAPOLEON DÁVILA CÓRDOVA","Manabí","CORPORACION GREENMED S.A.",712,7.1200000820681453E-4,"Administración del Estado","Salud","Gobierno Central y sus EP","Mayo"]
["MSP-HGNDC-2021-020-R-00001","KETOROLACO","Bien","HOSPITAL GENERAL DR. NAPOLEON DÁVILA CÓRDOVA","Manabí","CORPORACION GREENMED S.A.",2850,2.8500000480562449E-3,"Administración del Estado","Salud","Gobierno Central y sus EP","Mayo"]
["MSP-HGNDC-2021-020-R-00001","LIDOCAINA CON EPINEFRINA 2 PORCIENTO + 1:200.000 FRASCO X 20 ML","Bien","HOSPITAL GENERAL DR. NAPOLEON DÁVILA CÓRDOVA","Manabí","CORPORACION GREENMED S.A.",58,5.8000001445179805E-5,"Administración del Estado","Salud","Gobierno Central y sus EP","Mayo"]
["MSP-HGNDC-2021-020-R-00001","LOSARTÁN","Bien","HOSPITAL GENERAL DR. NAPOLEON DÁVILA CÓRDOVA","Manabí","CORPORACION GREENMED S.A.",12000,1.2000000104308128E-2,"Administración del Estado","Salud","Gobierno Central y sus EP","Mayo"]
["MSP-HGNDC-2021-020-R-00001","MANITOL*","Bien","HOSPITAL GENERAL DR. NAPOLEON DÁVILA CÓRDOVA","Manabí","CORPORACION GREENMED S.A.",38,3.7999998312443495E-5,"Administración del Estado","Salud","Gobierno Central y sus EP","Mayo"]
["MSP-HGNDC-2021-020-R-00001","MEDICAMENTOS QUE CONTENGAN PENICILINAS O SUS DERIVADOS, CON UNA ESTRUCTURA DE ACIDO PENICILANICO, O ESTREPTOMICINAS O SUS DERIVADOS, PRESENTADOS EN DOSIS MEDIDAS O ENVASES PARA LA VENTA AL POR MAYOR Y AL POR MENOR: AMOXILINA (GRUNAMOX, SERVAMOX, OXIPEN, A","Bien","HOSPITAL GENERAL DR. NAPOLEON DÁVILA CÓRDOVA","Manabí","CORPORACION GREENMED S.A.",240,2.3999999393709004E-4,"Administración del Estado","Salud","Gobierno Central y sus EP","Mayo"]
["MSP-HGNDC-2021-020-R-00001","METILPREDNISOLONA, ACETATO","Bien","HOSPITAL GENERAL DR. NAPOLEON DÁVILA CÓRDOVA","Manabí","CORPORACION GREENMED S.A.",845,8.449999731965363E-4,"Administración del Estado","Salud","Gobierno Central y sus EP","Mayo"]
["MSP-HGNDC-2021-020-R-00001","METOCLOPRAMIDA","Bien","HOSPITAL GENERAL DR. NAPOLEON DÁVILA CÓRDOVA","Manabí","CORPORACION GREENMED S.A.",300,3.0000001424923539E-4,"Administración del Estado","Salud","Gobierno Central y sus EP","Mayo"]
["MSP-HGNDC-2021-020-R-00001","METRONIDAZOL","Bien","HOSPITAL GENERAL DR. NAPOLEON DÁVILA CÓRDOVA","Manabí","CORPORACION GREENMED S.A.",2160,2.1599999163299799E-3,"Administración del Estado","Salud","Gobierno Central y sus EP","Mayo"]
["MSP-HGNDC-2021-020-R-00001","OMEPRAZOL","Bien","HOSPITAL GENERAL DR. NAPOLEON DÁVILA CÓRDOVA","Manabí","CORPORACION GREENMED S.A.",6720,6.7199999466538429E-3,"Administración del Estado","Salud","Gobierno Central y sus EP","Mayo"]
["MSP-HGNDC-2021-020-R-00001","PREDNISOLONA","Bien","HOSPITAL GENERAL DR. NAPOLEON DÁVILA CÓRDOVA","Manabí","CORPORACION GREENMED S.A.",1500,1.500000013038516E-3,"Administración del Estado","Salud","Gobierno Central y sus EP","Mayo"]
["MSP-HGNDC-2021-020-R-00001","PROPOFOL","Bien","HOSPITAL GENERAL DR. NAPOLEON DÁVILA CÓRDOVA","Manabí","CORPORACION GREENMED S.A.",5425,5.4250000976026058E-3,"Administración del Estado","Salud","Gobierno Central y sus EP","Mayo"]
["MSP-HGNDC-2021-020-R-00001","SIMVASTATINA","Bien","HOSPITAL GENERAL DR. NAPOLEON DÁVILA CÓRDOVA","Manabí","CORPORACION GREENMED S.A.",1782,1.7819999484345317E-3,"Administración del Estado","Salud","Gobierno Central y sus EP","Mayo"]
["MSP-HGNDC-2021-020-R-00001","SULFATO DE MAGNESIO","Bien","HOSPITAL GENERAL DR. NAPOLEON DÁVILA CÓRDOVA","Manabí","CORPORACION GREENMED S.A.",390,3.9000000106170774E-4,"Administración del Estado","Salud","Gobierno Central y sus EP","Mayo"]
["MSP-HGNDC-2021-020-R-00001","TRAMADOL","Bien","HOSPITAL GENERAL DR. NAPOLEON DÁVILA CÓRDOVA","Manabí","CORPORACION GREENMED S.A.",400,3.9999998989515007E-4,"Administración del Estado","Salud","Gobierno Central y sus EP","Mayo"]
["MSP-HGNDC-2021-020-R-00001","ÁCIDO ACETIL SALICÍLICO","Bien","HOSPITAL GENERAL DR. NAPOLEON DÁVILA CÓRDOVA","Manabí","CORPORACION GREENMED S.A.",720,7.2000001091510057E-4,"Administración del Estado","Salud","Gobierno Central y sus EP","Mayo"]
["MSP-HGNDC-2021-020-R-00002","BATA O BATON DESCARTABLE PARA CIRUJANO","Bien","HOSPITAL GENERAL DR. NAPOLEON DÁVILA CÓRDOVA","Manabí","MEDICA ECUADOR EQUIPOS E INSUMOS MEDICOS MEDECU C.A.",30510,3.0510000884532928E-2,"Administración del Estado","Salud","Gobierno Central y sus EP","Mayo"]
["MSP-HGNDC-2021-020-R-00002","CATETERS PARA EXTENSION ARTERIAL","Bien","HOSPITAL GENERAL DR. NAPOLEON DÁVILA CÓRDOVA","Manabí","MEDICA ECUADOR EQUIPOS E INSUMOS MEDICOS MEDECU C.A.",2740.5,2.7405000291764736E-3,"Administración del Estado","Salud","Gobierno Central y sus EP","Mayo"]
["MSP-HGNDC-2021-020-R-00002","CATETERS PARA EXTENSION VENOSA","Bien","HOSPITAL GENERAL DR. NAPOLEON DÁVILA CÓRDOVA","Manabí","MEDICA ECUADOR EQUIPOS E INSUMOS MEDICOS MEDECU C.A.",513,5.1300000632181764E-4,"Administración del Estado","Salud","Gobierno Central y sus EP","Mayo"]
["MSP-HGNDC-2021-020-R-00002","CATETERS VENOSO CENTRAL","Bien","HOSPITAL GENERAL DR. NAPOLEON DÁVILA CÓRDOVA","Manabí","MEDICA ECUADOR EQUIPOS E INSUMOS MEDICOS MEDECU C.A.",1368,1.3680000556632876E-3,"Administración del Estado","Salud","Gobierno Central y sus EP","Mayo"]
["MSP-HGNDC-2021-020-R-00002","INSUMOS DE USO GENERAL","Bien","HOSPITAL GENERAL DR. NAPOLEON DÁVILA CÓRDOVA","Manabí","MEDICA ECUADOR EQUIPOS E INSUMOS MEDICOS MEDECU C.A.",95891.22,9.5891222357749939E-2,"Administración del Estado","Salud","Gobierno Central y sus EP","Mayo"]
["MSP-HGNDC-2021-020-R-00002","JERINGAS,AGUJAS,CATETERES,CANULAS Y ARTICULOS ANALOGOS, AGUJAS TUBULARES DE METAL Y AGUJAS DE SUTURA","Bien","HOSPITAL GENERAL DR. NAPOLEON DÁVILA CÓRDOVA","Manabí","MEDICA ECUADOR EQUIPOS E INSUMOS MEDICOS MEDECU C.A.",7987.5,7.9875001683831215E-3,"Administración del Estado","Salud","Gobierno Central y sus EP","Mayo"]
["MSP-HGNDC-2021-020-R-00002","MASCARILLAS DE PROTECCION","Bien","HOSPITAL GENERAL DR. NAPOLEON DÁVILA CÓRDOVA","Manabí","MEDICA ECUADOR EQUIPOS E INSUMOS MEDICOS MEDECU C.A.",4320,4.3199998326599598E-3,"Administración del Estado","Salud","Gobierno Central y sus EP","Mayo"]
["MSP-HGNDC-2021-020-R-00002","TERMOMETRO DIGITALES","Bien","HOSPITAL GENERAL DR. NAPOLEON DÁVILA CÓRDOVA","Manabí","MEDICA ECUADOR EQUIPOS E INSUMOS MEDICOS MEDECU C.A.",270,2.6999998954124749E-4,"Administración del Estado","Salud","Gobierno Central y sus EP","Mayo"]
["MSPCZ6HGM-2020-0062R-00069","ENOXAPARINA 4 000 UI (40 MG)","Bien","HOSPITAL GENERAL DE MACAS","Morona Santiago","GUERRON ESPINOSA JUAN ALEXANDER",6384,6.3840001821517944E-3,"Administración del Estado","Salud","Gobierno Central y sus EP","Abril"]
["MSPCZ6HGM-2020-0062R-00070","ENOXAPARINA 6 000 UI (60 MG)","Bien","HOSPITAL GENERAL DE MACAS","Morona Santiago","GUERRON ESPINOSA JUAN ALEXANDER",7485,7.4849999509751797E-3,"Administración del Estado","Salud","Gobierno Central y sus EP","Abril"]
["MSPCZ6HGM-2020-0062R-00071","PROPOFOL - LÍQUIDO PARENTERAL- 10 MG/ML","Bien","HOSPITAL GENERAL DE MACAS","Morona Santiago","GUERRON ESPINOSA JUAN ALEXANDER",9144,9.1439997777342796E-3,"Administración del Estado","Salud","Gobierno Central y sus EP","Abril"]
["N12-EPEMMPA-2020-00056","SERVICIO DE DESINFECCIÓN DE VIRUS, ESPORAS","Servicio","EMPRESA PUBLICA MUNICIPAL MERCADO DE PRODUCTORES AGRICOLAS “SAN PEDRO DE RIOBAMBA“","Chimborazo","AIMACAÑA MONTAGUANO HERNAN XAVIER",348.25,3.4825000329874456E-4,"EP de los GAD","Comercio Exterior Industrialización Pesca y Competitividad","GAD y sus EP","Marzo"]
["N12-EPEMMPA-2020-00057","SERVICIO DE DESINFECCIÓN DE VIRUS, ESPORAS","Servicio","EMPRESA PUBLICA MUNICIPAL MERCADO DE PRODUCTORES AGRICOLAS “SAN PEDRO DE RIOBAMBA“","Chimborazo","MURGUEITIO SERRANO JENNY MISHELL",348.25,3.4825000329874456E-4,"EP de los GAD","Comercio Exterior Industrialización Pesca y Competitividad","GAD y sus EP","Marzo"]
["N12-EPEMMPA-2020-00058","SERVICIO DE DESINFECCIÓN DE VIRUS, ESPORAS","Servicio","EMPRESA PUBLICA MUNICIPAL MERCADO DE PRODUCTORES AGRICOLAS “SAN PEDRO DE RIOBAMBA“","Chimborazo","MURGUEITIO SERRANO JENNY MISHELL",348.25,3.4825000329874456E-4,"EP de los GAD","Comercio Exterior Industrialización Pesca y Competitividad","GAD y sus EP","Marzo"]
["N12-EPEMMPA-2020-00059","SERVICIO DE DESINFECCIÓN DE VIRUS, ESPORAS","Servicio","EMPRESA PUBLICA MUNICIPAL MERCADO DE PRODUCTORES AGRICOLAS “SAN PEDRO DE RIOBAMBA“","Chimborazo","MURGUEITIO SERRANO JENNY MISHELL",348.25,3.4825000329874456E-4,"EP de los GAD","Comercio Exterior Industrialización Pesca y Competitividad","GAD y sus EP","Marzo"]
["N12-EPEMMPA-2020-00060","SERVICIO DE DESINFECCIÓN DE VIRUS, ESPORAS","Servicio","EMPRESA PUBLICA MUNICIPAL MERCADO DE PRODUCTORES AGRICOLAS “SAN PEDRO DE RIOBAMBA“","Chimborazo","MURGUEITIO SERRANO JENNY MISHELL",348.25,3.4825000329874456E-4,"EP de los GAD","Comercio Exterior Industrialización Pesca y Competitividad","GAD y sus EP","Marzo"]
["N12-EPEMMPA-2020-00061","SERVICIO DE DESINFECCIÓN DE VIRUS, ESPORAS","Servicio","EMPRESA PUBLICA MUNICIPAL MERCADO DE PRODUCTORES AGRICOLAS “SAN PEDRO DE RIOBAMBA“","Chimborazo","MURGUEITIO SERRANO JENNY MISHELL",348.25,3.4825000329874456E-4,"EP de los GAD","Comercio Exterior Industrialización Pesca y Competitividad","GAD y sus EP","Marzo"]
["PE-GADMCQ-01-2021-00001","SERVICIOS DE DELINEACION (PLANOS DETALLADOS, DIBUJOS, PLANOS E ILUSTRACIONES DE EDIFICIOS, ESTRUCTURAS, SISTEMAS O COMPONENTES DE ESPECIFICACIONES DE INGENIERIA Y ARQUITECTURA, HECHOS POR DELINEANTES DE ARQUITECTURA O TECNICOS DE INGENIERIA)","Obra","GOBIERNO AUTONOMO DESCENTRALIZADO MUNICIPAL DEL CANTON QUINSALOMA","Los Ríos","NUÑEZ GAVILANEZ JAIME RODRIGO",61432.5,6.1432499438524246E-2,"GAD Municipales","Régimen de GAD","GAD y sus EP","Marzo"]
["PESE-HEFFAA-001-2O21-00003","ANTIBACTERIANOS PARA USO SISTEMICO","Bien","HOSPITAL DE ESPECIALIDADES FUERZAS ARMADAS NO. 1","Pichincha","VANGUARDIA AL SERVICIO DEL CUIDADO HUMANO LABORATORIOS ECUADOR VASCH-LABS S A",9312.48,9.3124797567725182E-3,"Administración del Estado","Defensa Nacional","Gobierno Central y sus EP","Abril"]
["PESE-HEFFAA-001-2O21-00003","ANTIEMETICOS Y ANTINEUSEOSOS","Bien","HOSPITAL DE ESPECIALIDADES FUERZAS ARMADAS NO. 1","Pichincha","VANGUARDIA AL SERVICIO DEL CUIDADO HUMANO LABORATORIOS ECUADOR VASCH-LABS S A",3932.4,3.9324001409113407E-3,"Administración del Estado","Defensa Nacional","Gobierno Central y sus EP","Abril"]
["PESE-HEFFAA-001-2O21-00003","OTRAS DROGAS QUE ACTUAN SOBRE EL SISTEMA NERVIOSO","Bien","HOSPITAL DE ESPECIALIDADES FUERZAS ARMADAS NO. 1","Pichincha","VANGUARDIA AL SERVICIO DEL CUIDADO HUMANO LABORATORIOS ECUADOR VASCH-LABS S A",49.9,4.9900001613423228E-5,"Administración del Estado","Defensa Nacional","Gobierno Central y sus EP","Abril"]
["PESE-HEFFAA-001-2O21-00003","SUSTITUTOS DE LA SANGRE Y SOLUCIONES PARA PERFUSION","Bien","HOSPITAL DE ESPECIALIDADES FUERZAS ARMADAS NO. 1","Pichincha","VANGUARDIA AL SERVICIO DEL CUIDADO HUMANO LABORATORIOS ECUADOR VASCH-LABS S A",27854.100000000002,2.7854099869728088E-2,"Administración del Estado","Defensa Nacional","Gobierno Central y sus EP","Abril"]
["PESE-HEFFAA-001-2O21-00003","TERAPIA CARDIACA","Bien","HOSPITAL DE ESPECIALIDADES FUERZAS ARMADAS NO. 1","Pichincha","VANGUARDIA AL SERVICIO DEL CUIDADO HUMANO LABORATORIOS ECUADOR VASCH-LABS S A",90.6,9.059999865712598E-5,"Administración del Estado","Defensa Nacional","Gobierno Central y sus EP","Abril"]
["PESE-HEFFAA-001-2O21-00003","TODO EL RESTO DE LOS PRODUCTOS TERAPEUTICOS","Bien","HOSPITAL DE ESPECIALIDADES FUERZAS ARMADAS NO. 1","Pichincha","VANGUARDIA AL SERVICIO DEL CUIDADO HUMANO LABORATORIOS ECUADOR VASCH-LABS S A",453,4.5299998600967228E-4,"Administración del Estado","Defensa Nacional","Gobierno Central y sus EP","Abril"]
["PG-SGR-058-2020-00003","SERVICIOS GENERALES DE CONSTRUCCION DE PUENTES, CARRETERAS ELEVADAS","Obra","GOBIERNO PROVINCIAL DEL GUAYAS","Guayas","INESTRUCSUR INGENIERIA DE ESTRUCTURAS DE SUR AMERICA S.A",11411729.369999999,11.41172981262207,"GAD Provinciales","Régimen de GAD","GAD y sus EP","Febrero"]
["R-UNION-E04-2020-00002","OTROS SERVICIOS DE ALQUILER RELATIVOS A EXCAVADORAS","Servicio","JUNTA PARROQUIAL LA UNIÓN","Azuay","CALLE ULLAURI OMAR FLORENCIO",325,3.2500000088475645E-4,"GAD Parroquiales Rurales","Régimen de GAD","GAD y sus EP","Febrero"]
["R-UNION-E04-2020-00003","OTROS SERVICIOS DE ALQUILER RELATIVOS A EXCAVADORAS","Servicio","JUNTA PARROQUIAL LA UNIÓN","Azuay","YANZA LANDI JORGE ALFREDO",1360,1.3599999947473407E-3,"GAD Parroquiales Rurales","Régimen de GAD","GAD y sus EP","Febrero"]
["R-UNION-E04-2020-00004","OTROS SERVICIOS DE ALQUILER RELATIVOS A EXCAVADORAS","Servicio","JUNTA PARROQUIAL LA UNIÓN","Azuay","RUIZ MARIN PABLO PATRICIO",440,4.400000034365803E-4,"GAD Parroquiales Rurales","Régimen de GAD","GAD y sus EP","Febrero"]
["R-UNION-E04-2020-00005","SERVICIOS DE ALQUILER DE VEHÍCULOS DE CARGA PESADA CON CONDUCTOR","Servicio","JUNTA PARROQUIAL LA UNIÓN","Azuay","RUIZ MARIN PAUL ESTEBAN",231,2.3099999816622585E-4,"GAD Parroquiales Rurales","Régimen de GAD","GAD y sus EP","Febrero"]
["R-UNION-E04-2020-00006","SERVICIOS DE ALQUILER DE VEHÍCULOS DE CARGA PESADA CON CONDUCTOR","Servicio","JUNTA PARROQUIAL LA UNIÓN","Azuay","YUNGA YUNGA FAUSTO ELIBERTO",540,5.3999997908249497E-4,"GAD Parroquiales Rurales","Régimen de GAD","GAD y sus EP","Febrero"]
["R0019GADMB2021-00001","ALQUILER DE EQUIPO CAMINERO","Obra","GOBIERNO AUTONOMO DESCENTRALIZADO MUNICIPAL DE BALSAS PROVINCIA DE EL ORO","El Oro","LOAYZA OCAÑA ALFREDO FABRICIO",20640,2.0640000700950623E-2,"GAD Municipales","Régimen de GAD","GAD y sus EP","Abril"]
["R0019GADMB2021-00002","ALQUILER DE EQUIPO CAMINERO","Servicio","GOBIERNO AUTONOMO DESCENTRALIZADO MUNICIPAL DE BALSAS PROVINCIA DE EL ORO","El Oro","PEREIRA ANGEL RODRIGO",15600,1.5599999576807022E-2,"GAD Municipales","Régimen de GAD","GAD y sus EP","Abril"]
["RA-137-ALC-GAD-I-202-00001","OTRAS OBRAS DE INGENIERIA CIVIL","Obra","GOBIERNO AUTONOMO DESCENTRALIZADO DE SAN MIGUEL DE IBARRA","Imbabura","MARROQUIN PUENTE CONSTRUCTORES",58288.73,5.8288730680942535E-2,"GAD Municipales","Régimen de GAD","GAD y sus EP","Abril"]
["RA-137-ALC-GAD-I-202-00002","OTRAS OBRAS DE INGENIERIA CIVIL","Obra","GOBIERNO AUTONOMO DESCENTRALIZADO DE SAN MIGUEL DE IBARRA","Imbabura","CAMPOS SANCHEZ JULIO CESAR",124696.19,0.12469618767499924,"GAD Municipales","Régimen de GAD","GAD y sus EP","Abril"]
["RA-137-ALC-GAD-I-202-00003","OTRAS OBRAS DE INGENIERIA CIVIL","Obra","GOBIERNO AUTONOMO DESCENTRALIZADO DE SAN MIGUEL DE IBARRA","Imbabura","CUAMACAS VEGA ROLANDO HUMBERTO",130662.09,0.13066208362579346,"GAD Municipales","Régimen de GAD","GAD y sus EP","Abril"]
["RA-137-ALC-GAD-I-202-00004","OTRAS OBRAS DE INGENIERIA CIVIL","Obra","GOBIERNO AUTONOMO DESCENTRALIZADO DE SAN MIGUEL DE IBARRA","Imbabura","SOCIEDAD CIVIL R&H CONSTRUCCIONES",151064.78,0.15106478333473206,"GAD Municipales","Régimen de GAD","GAD y sus EP","Abril"]
["RA-137-ALC-GAD-I-202-00005","OTRAS OBRAS DE INGENIERIA CIVIL","Obra","GOBIERNO AUTONOMO DESCENTRALIZADO DE SAN MIGUEL DE IBARRA","Imbabura","VILLA ADRIANO ROSA INES",164773.73000000001,0.16477373242378235,"GAD Municipales","Régimen de GAD","GAD y sus EP","Abril"]
["RA-137-ALC-GAD-I-202-00006","OTROS SERVICIOS DE OBRAS DE EXCAVACION Y MOVIMIENTO DE TIERRAS","Servicio","GOBIERNO AUTONOMO DESCENTRALIZADO DE SAN MIGUEL DE IBARRA","Imbabura","ARANDY LOPEZ DAVID ALEJANDRO",194337.14009999999,0.1943371444940567,"GAD Municipales","Régimen de GAD","GAD y sus EP","Mayo"]
["RE-FEHP-001-2021-00002","SERVICIOS GENERALES DE CONSTRUCCION PARA OTRAS INSTALACIONES DEPORTIVAS:  GIMNASIOS ","Obra","FEDERACION ECUATORIANA DE HOCKEY Y PATIN","Guayas","REALPE MONAR EDGAR JASMANY",60714.92,6.0714919120073318E-2,"Administración del Estado","Educación","Gobierno Central y sus EP","Abril"]
["RSCA-2021-041-00001","SERVICIOS ESPECIALIZADOS DE CONSTRUCCION QUE OBLIGAN A SOLDAR Y DOBLAR ACERO PARA PROYECTOS DE CONSTRUCCION CON HORMIGON REFORZADO","Obra","MUNICIPIO DEL CANTÓN EL EMPALME","Guayas","VELASQUEZ GANCHOZO BAYRON ANTONIO",99771.11,9.9771112203598022E-2,"GAD Municipales","Régimen de GAD","GAD y sus EP","Mayo"]
["SNAI-SNAI-2021-011-R-00001","ASESORIA Y CAPACITACION EN SISTEMAS DE SEGURIDAD CIUDADANA Y EN ANTI TERRORISMO","Servicio","SERVICIO NACIONAL DE ATENCIÓN INTEGRAL A PERSONAS ADULTAS PRIVADAS DE LA LIBERTAD Y A ADOLESCENTES INFRACTORES","Pichincha","INNOVASEGURIDAD CIA.LTDA.",93524,9.352400153875351E-2,"Administración del Estado","Asuntos Internos","Gobierno Central y sus EP","Marzo"]
["SNAI-SNAI-2021-011-R-00002","UNIFORME DE CAMPO","Bien","SERVICIO NACIONAL DE ATENCIÓN INTEGRAL A PERSONAS ADULTAS PRIVADAS DE LA LIBERTAD Y A ADOLESCENTES INFRACTORES","Pichincha","SINCHI BASTIDAS SEGUNDO MIGUEL",52560.899999999994,5.2560899406671524E-2,"Administración del Estado","Asuntos Internos","Gobierno Central y sus EP","Mayo"]

{"sheet":"Dashboard","index":2,"n_rows":290,"n_cols":42,"rows_kept":290,"cut":false,"hidden":false,"merged":[[0,8,8,15],[87,38,93,38],[98,38,104,38],[144,1,144,13],[10,0,10,15],[128,7,128,13],[128,1,128,3],[108,8,108,12],[108,1,108,6],[92,0,92,15],[68,2,68,8],[29,0,29,4],[29,7,29,12],[43,2,43,8],[280,0,287,15],[250,2,250,10],[191,1,191,3],[173,1,173,5],[222,1,222,2],[222,3,222,5],[173,8,173,12],[191,8,191,12],[222,7,222,9]]}
[null,null,null,null,null,null,null,null,"OTROS PROCEDIMIENTOS - EMERGENCIAS\nEnero - mayo 20211\n(millones de dólares)"]
[]
[]
[]
[]
[]
[]
[]
[]
[]
["INDICADORES DE RESOLUCIONES Y CONTRATACIONES PUBLICADAS"]
[]
[]
[]
[]
[]
[]
[]
[]
[]
[]
[]
[]
[]
[]
[]
["1. NÚMERO DE RESOLUCIONES Y CONTRATACIONES PUBLICADAS Y NÚMERO DE ENTIDADES QUE PUBLICARON RESOLUCIONES Y CONTRATACIONES"]
[null,null,null,null,null,null,null,null,null,null,null,null,null,null,null,null,null,null,null,null,null,null,null,null,null,null,"ANALISIS POR MES",null,null,null,null,"RANGOS",null,null,null,"SECTORIAL"]
[null,null,null,null,null,null,null,null,null,null,null,null,null,null,null,null,null,null,null,null,null,null,null,null,null,null,"Etiquetas de fila","Suma de Valor_adjudicado",null,null,null,"Etiquetas de fila","Suma de Valor_adjudicado",null,null,"Etiquetas de fila","Suma de Valor_adjudicado millones",null,"Etiquetas de fila","Suma de Valor_adjudicado",null,"Suma de Valor_adjudicado millones"]
["Número de entidades que registraron resoluciones de emergencias y número de resoluciones de emergencia publicadas",null,null,null,null,null,null,"Número de entidades que registraron contrataciones y procesos de contratación publicados",null,null,null,null,null,null,null,null,null,null,null,null,null,null,null,null,null,null,"Febrero",12107171.569999998,null,null,null,"0-3000000",8763372.8485800009,null,null,"Comercio Exterior Industrialización Pesca y Competitividad",6.7493201449033411E-5,null,"Febrero",8.419434820380173E-5,null,1]
[null,null,null,null,null,null,null,null,null,null,null,null,null,null,null,null,null,null,null,null,null,null,null,null,null,null,"Marzo",12935061.965499999,null,null,null,"Total general",8763372.8485800009,null,null,"Comunicaciones",7.8953641773303271E-4,null,"Marzo",9.3082905511657418E-3]
[null,null,null,null,null,null,null,null,null,null,null,null,null,null,null,null,null,null,null,null,null,null,null,null,null,null,"Abril",3105311.7595999991,null,null,null,null,null,null,null,"Desarrollo Urbano y Vivienda",1.2386160314934258E-3,null,"Abril",0.28568638823375431]
[null,null,null,null,null,null,null,null,null,null,null,null,null,null,null,null,null,null,null,null,null,null,null,null,null,null,"Mayo",2811128.5815999997,null,null,null,null,null,null,null,"Defensa Nacional",1.3467140025225648E-3,null,"Mayo",0.39377997764133688]
[null,null,null,null,null,null,null,null,null,null,null,null,null,null,null,null,null,null,null,null,null,null,null,null,null,null,"Total general",30958673.876699995,null,null,null,null,null,null,null,"Asuntos Internos",4.7187066545952691E-3,null,"Junio",0.25215749301029461]
[null,null,null,null,null,null,null,null,null,null,null,null,null,null,null,null,null,null,null,null,null,null,null,null,null,null,null,null,null,null,null,null,null,null,null,"Educación",1.008650784808179E-2,null,"Julio",5.8983656215244713E-2]
[null,null,null,null,null,null,null,null,null,null,null,null,null,null,null,null,null,null,null,null,null,null,null,null,null,null,null,null,null,null,null,null,null,null,null,"Salud",4.9363293671782674E-2,null,"Total general",1]
[null,null,null,null,null,null,null,null,null,null,null,null,null,null,null,null,null,null,null,null,null,null,null,null,null,null,null,null,null,null,null,null,null,null,null,"Recursos Naturales",0.40524900342527742]
[null,null,null,null,null,null,null,null,null,null,null,null,null,null,null,null,null,null,null,null,null,null,null,null,null,null,null,null,null,null,null,null,null,null,null,"Régimen de GAD",0.52714012874706484]
[null,null,null,null,null,null,null,null,null,null,null,null,null,null,null,null,null,null,null,null,null,null,null,null,null,null,null,null,null,null,null,null,null,null,null,"Total general",1]
[null,null,null,null,null,null,null,null,null,null,null,null,null,null,null,null,null,null,null,null,null,null,null,null,null,null,null,null,null,null,null,"SECTOR DE GOBIERNO"]
[null,null,null,null,null,null,null,null,null,null,null,null,null,null,null,null,null,null,null,null,null,null,null,null,null,null,null,null,null,null,null,"Etiquetas de fila","Suma de Valor_adjudicado"]
["2. NÚMERO DE RESOLUCIONES Y CONTRATACIONES PUBLICADAS POR PROVINCIA DE LA ENTIDAD",null,null,null,null,null,null,null,null,null,null,null,null,null,null,null,null,null,null,null,null,null,null,null,null,null,null,null,null,null,null,"Otros",1.1837832542815131E-2,null,null,null,null,null,"Suma de Valor_adjudicado millones"]
[null,null,null,null,null,null,null,null,null,null,null,null,null,null,null,null,null,null,null,null,null,null,null,null,null,null,null,null,null,null,null,"Sociedades Anónimas",1.1837832542815131E-2,null,null,null,null,null,1]
[null,null,"Número de resoluciones y contrataciones publicadas por provincia de la entidad",null,null,null,null,null,null,null,null,null,null,null,null,null,null,null,null,null,null,null,null,null,null,null,null,null,null,null,null,"Gobierno Central y sus EP",0.4597159431532169]
[null,null,null,null,null,null,null,null,null,null,null,null,null,null,null,null,null,null,null,null,null,null,null,null,null,null,null,null,null,null,null,"Educación Superior",8.1253480366069754E-3]
[null,null,null,null,null,null,null,null,null,null,null,null,null,null,null,null,null,null,null,null,null,null,null,null,null,null,null,null,null,null,null,"Administración del Estado",5.7389874872424168E-2]
[null,null,null,null,null,null,null,null,null,null,null,null,null,null,null,null,null,null,null,null,null,null,null,null,null,null,null,null,null,null,null,"EP de la Función Ejecutiva",0.39420072024418573]
[null,null,null,null,null,null,null,null,null,null,null,null,null,null,null,null,null,null,null,null,null,null,null,null,null,null,"TIPO DE COMPRA",null,null,null,null,"GAD y sus EP",0.52844622430396793]
[null,null,null,null,null,null,null,null,null,null,null,null,null,null,null,null,null,null,null,null,null,null,null,null,null,null,"Etiquetas de fila","Suma de Valor_adjudicado millones",null,null,null,"GAD Parroquiales Rurales",4.7839768780104841E-4]
[null,null,null,null,null,null,null,null,null,null,null,null,null,null,null,null,null,null,null,null,null,null,null,null,null,null,"Consultoría",5.0759966694128135E-3,null,null,null,"EP de los GAD",1.3061092397252951E-3]
[null,null,null,null,null,null,null,null,null,null,null,null,null,null,null,null,null,null,null,null,null,null,null,null,null,null,"Servicio",4.1382628277115453E-2,null,null,null,"GAD Municipales",0.1388601148492811]
[null,null,null,null,null,null,null,null,null,null,null,null,null,null,null,null,null,null,null,null,null,null,null,null,null,null,"Bien",0.47635995778462603,null,null,null,"GAD Provinciales",0.38780160252716045]
[null,null,null,null,null,null,null,null,null,null,null,null,null,null,null,null,null,null,null,null,null,null,null,null,null,null,"Obra",0.47718141726884572,null,null,null,"Total general",1]
[null,null,null,null,null,null,null,null,null,null,null,null,null,null,null,null,null,null,null,null,null,null,null,null,null,null,"Total general",1]
[]
[]
[]
[]
[null,null,null,null,null,null,null,null,null,null,null,null,null,null,null,null,null,null,null,null,null,null,null,null,null,null,null,null,null,null,null,"ENTIIDAD",null,null,null,"PROVEEDOR",null,null,"CPC"]
[null,null,null,null,null,null,null,null,null,null,null,null,null,null,null,null,null,null,null,null,null,null,null,null,null,null,"ANALISIS POR TIPO DE CONTRATACIÓN",null,null,null,null,"Etiquetas de fila","Suma de Valor_adjudicado",null,null,"Etiquetas de fila","Suma de Valor_adjudicado",null,"Etiquetas de fila","Suma de Valor_adjudicado"]
[null,null,null,null,null,null,null,null,null,null,null,null,null,null,null,null,null,null,null,null,null,null,null,null,null,null,"Suma de Valor_adjudicado millones",null,null,null,null,"MUNICIPIO DE PEDERNALES",1562054.17,null,null,"MEGA SANTAMARIA S.A.",1317718.02,null,"CONSTRUCCION DE BOVEDAS ",82999.92]
[null,null,null,null,null,null,null,null,null,null,null,null,null,null,null,null,null,null,null,null,null,null,null,null,null,null,1,null,null,null,null,"ILUSTRE MUNICIPALIDAD DE SANTA ELENA",1631401.2289999998,null,null,"COSTASHUE S.A.",1336000,null,"ASESORIA Y CAPACITACION EN SISTEMAS DE SEGURIDAD CIUDADANA Y EN ANTI TERRORISMO",93524]
[null,null,null,null,null,null,null,null,null,null,null,null,null,null,null,null,null,null,null,null,null,null,null,null,null,null,null,null,null,null,null,"HOSPITAL GENERAL MANTA",1652302.7750000001,null,null,"GUACHO AMAYA ANA ALEXANDRA",1358580,null,"SERVICIOS ESPECIALIZADOS DE CONSTRUCCION QUE OBLIGAN A SOLDAR Y DOBLAR ACERO PARA PROYECTOS DE CONSTRUCCION CON HORMIGON REFORZADO",99771.11]
[null,null,null,null,null,null,null,null,null,null,null,null,null,null,null,null,null,null,null,null,null,null,null,null,null,null,null,null,null,null,null,"HOSPITAL GENERAL-BABAHOYO",2019879.6599999997,null,null,"JARAVITEX CIA LTDA",1605825.52,null,"RETROEXCAVADORAS",114000]
[null,null,null,null,null,null,null,null,null,null,null,null,null,null,null,null,null,null,null,null,null,null,null,null,null,null,null,null,null,null,null,"GOBIERNO AUTONOMO DESCENTRALIZADO MUNICIPALIDAD DE AMBATO ",2062120.97,null,null,"MEDILABOR S.A.",1768894.8,null,"PROPOFOL - LÍQUIDO PARENTERAL- 10 MG/ML",121144]
[null,null,null,null,null,null,null,null,null,null,null,null,null,null,null,null,null,null,null,null,null,null,null,null,null,null,null,null,null,null,null,"COORDINACIÓN ZONAL 8 - SALUD",2069808.9887999999,null,null,"CORPORACION FAVORITA C.A.",1952333.8450000002,null,"ROCURONIO, BROMURO - LÍQUIDO PARENTERAL- 10 MG/ML",140000]
["3. NÚMERO DE RESOLUCIONES Y CONTRATACIONES PUBLICADAS POR SECTOR DE GOBIERNO",null,null,null,null,null,null,null,null,null,null,null,null,null,null,null,null,null,null,null,null,null,null,null,null,null,"PROVINCIA",null,null,null,null,"GOBIERNO AUTONOMO DESCENTRALIZADO DE LA PROVINCIA DE ESMERALDAS",2152789.7000000002,null,null,"CAMPOSANTOS DEL ECUADOR S.A. CAMPOECUADOR",1990078.9887999999,null,"OXIGENO LIQUIDO",147490]
[null,null,null,null,null,null,null,null,null,null,null,null,null,null,null,null,null,null,null,null,null,null,null,null,null,null,"Etiquetas de fila","Valor Adjudicado",null,null,null,"GOBIERNO AUTONOMO DESCENTRALIZADO ILUSTRE MUNICIPALIDAD DEL CANTON DAULE",2436410.0759999994,null,null,"ROCHE ECUADOR S.A.",2136590,null,"SERVICIOS DE DISENO DE INGENIERIA PARA OBRAS DE IRRIGACION",157146.12]
[null,null,"Número de resoluciones y de contrataciones publicadas por sector de gobierno",null,null,null,null,null,null,null,null,null,null,null,null,null,null,null,null,null,null,null,null,null,null,null,"Guayas",24854732.899999999,null,null,null,"GOBIERNO AUTÓNOMO DESCENTRALIZADO DEL DISTRITO METROPOLITANO DE QUITO UNIDAD PATRONATO MUNICIPAL SAN JOSE",2804361.04,null,null,"SIMED S. A.",2206658.3199999994,null,"SERVICIOS GENERALES DE CONSTRUCCION  EN CARRETERAS (EXCEPTO CARRETERAS SOBREELEVADAS), CAMINOS",178496]
[null,null,null,null,null,null,null,null,null,null,null,null,null,null,null,null,null,null,null,null,null,null,null,null,null,null,"Loja",1246624.8700000001,null,null,null,"HOSPITAL GENERAL - MILAGRO",2861421.2239999999,null,null,"COMERCIALIZADORA NUTRI MED NUTRIMEDECUADOR S.A.",2216407,null,"REACTIVOS PARA ANALISIS CELULAR",193864.7]
[null,null,null,null,null,null,null,null,null,null,null,null,null,null,null,null,null,null,null,null,null,null,null,null,null,null,"Manabí",974682.87000000011,null,null,null,"CONSEJO PROVINCIAL DE MANABÍ",3084183.9747000006,null,null,"ARKITRUST S.A.",2898328.15,null,"OTROS SERVICIOS DE OBRAS DE EXCAVACION Y MOVIMIENTO DE TIERRAS",194337.14009999999]
[null,null,null,null,null,null,null,null,null,null,null,null,null,null,null,null,null,null,null,null,null,null,null,null,null,null,"Santa Elena",960884.65999999992,null,null,null,"HOSPITAL GENERAL MACHALA",3322145.46,null,null,"ANDRADE LARA JAVIER ROBERTO",3187964.2199999997,null,"REACTIVOS COMPUESTOS PARA DIAGNOSTICO O LABORATORIO N.C.P.: SOBRE SOPORTE DE PAPEL O CARTON.",218859.97999999998]
[null,null,null,null,null,null,null,null,null,null,null,null,null,null,null,null,null,null,null,null,null,null,null,null,null,null,"Imbabura",823822.66009999998,null,null,null,"HOSPITAL GENERAL DEL NORTE DE GUAYAQUIL LOS CEIBOS",3631560.05,null,null,"APOLO APOLO JOSE GONZALO",3239134.06,null,"TRACTORES DE ORUGA: TRACTORRES DE ORUGA CON CABRESTANTE, ETC.",243000]
[null,null,null,null,null,null,null,null,null,null,null,null,null,null,null,null,null,null,null,null,null,null,null,null,null,null,"Azuay",668222.31709999975,null,null,null,"HOSPITAL DE ESPECIALIDADES - TEODORO MALDONADO CARBO",3641199.0300000003,null,null,"CONSORCIO CEMENTERIO SUBURBIO",3348252.56,null,"SERVICIO DE VIGILANCIA FISICA CON MEDIO HUMANO, CON ARMA",251550]
[null,null,null,null,null,null,null,null,null,null,null,null,null,null,null,null,null,null,null,null,null,null,null,null,null,null,"Pichincha",534930.37,null,null,null,"HOSPITAL GENERAL GUASMO SUR",4382965.4660000009,null,null,"SALUMED S.A.",3860004,null,"EXCAVADORA DE ORUGAS",337000]
[null,null,null,null,null,null,null,null,null,null,null,null,null,null,null,null,null,null,null,null,null,null,null,null,null,null,"El Oro",216020.12,null,null,null,"GOBIERNO PROVINCIAL DEL GUAYAS",5606002.290000001,null,null,"CONSORCIO CASUARINA",4209650.9000000004,null,"ALQUILER DE EQUIPO CAMINERO",373367.44]
[null,null,null,null,null,null,null,null,null,null,null,null,null,null,null,null,null,null,null,null,null,null,null,null,null,null,"Sucumbíos",214452.87,null,null,null,"GOBIERNO AUTONOMO DESCENTRALIZADO DEL DISTRITO METROPOLITANO DE QUITO",8158802.9977999991,null,null,"MILENIO LIMPIEZA Y MANTENIMIENTO S.A. MILIMAN",4709260.5,null,"INSUMOS DE USO GENERAL",394564.81999999995]
[null,null,null,null,null,null,null,null,null,null,null,null,null,null,null,null,null,null,null,null,null,null,null,null,null,null,"Tungurahua",108609.34,null,null,null,"GUAYAQUIL SIGLO XXI, FUNDACIÓN MUNICIPAL PARA LA REGENERACIÓN URBANA",8933224.0199999996,null,null,"CHICAIZA ALVARADO PEDRO GIOVANNY",5409732.415000001,null,"OTRAS OBRAS DE INGENIERIA CIVIL",2923351.2]
[null,null,null,null,null,null,null,null,null,null,null,null,null,null,null,null,null,null,null,null,null,null,null,null,null,null,"Cañar",100995.98149999999,null,null,null,"MUNICIPALIDAD DE GUAYAQUIL",17578346.640000001,null,null,"SUMINISTROS MEDICOS MANOSALVAS VILLAGOMEZ MV ASOCIADOS CIA. LTDA.",6435000,null,"SERVICIOS GENERALES DE CONSTRUCCION DE PUENTES, CARRETERAS ELEVADAS",11411729.369999999]
[null,null,null,null,null,null,null,null,null,null,null,null,null,null,null,null,null,null,null,null,null,null,null,null,null,null,"Carchi",82999.92,null,null,null,"MINISTERIO DE SALUD PUBLICA MATRIZ",41815775.3983,null,null,"MARTINEZ VELASQUEZ ISIDORO RICARDO",9960000,null,"MAQUINAS-HERRAMIENTA DE TRABAJAR METALES, POLIVALENTES, ELECTRICAS",12179488.539999999]
[null,null,null,null,null,null,null,null,null,null,null,null,null,null,null,null,null,null,null,null,null,null,null,null,null,null,"Los Ríos",61432.5,null,null,null,"Total general",121406755.15959999,null,null,"Total general",65146413.298799992,null,"Total general",29855684.340099998]
[null,null,null,null,null,null,null,null,null,null,null,null,null,null,null,null,null,null,null,null,null,null,null,null,null,null,"Chimborazo",48128.707999999999]
[null,null,null,null,null,null,null,null,null,null,null,null,null,null,null,null,null,null,null,null,null,null,null,null,null,null,"Esmeraldas",24443]
[null,null,null,null,null,null,null,null,null,null,null,null,null,null,null,null,null,null,null,null,null,null,null,null,null,null,"Morona Santiago",23013]
[null,null,null,null,null,null,null,null,null,null,null,null,null,null,null,null,null,null,null,null,null,null,null,null,null,null,"Zamora Chinchipe",8261.65]
[null,null,null,null,null,null,null,null,null,null,null,null,null,null,null,null,null,null,null,null,null,null,null,null,null,null,"Pastaza",6416.14]
[null,null,null,null,null,null,null,null,null,null,null,null,null,null,null,null,null,null,null,null,null,null,null,null,null,null,"Total general",30958673.876699999]
[null,null,null,null,null,null,null,null,null,null,null,null,null,null,null,null,null,null,null,null,null,null,null,null,null,null,null,null,null,null,null,null,null,null,null,null,null,null,"Entidades"]
[]
[]
[]
[]
["CIFRAS DE CONTRATACIONES"]
[]
[]
[null,null,null,null,null,null,null,null,null,null,null,null,null,null,null,null,null,null,null,null,null,null,null,null,null,null,null,null,null,null,null,"Suma de Valor_adjudicado"]
[null,null,null,null,null,null,null,null,null,null,null,null,null,null,null,null,null,null,null,null,null,null,null,null,null,null,null,null,null,null,null,202928110.550163]
[]
[null,null,null,null,null,null,null,null,null,null,null,null,null,null,null,null,null,null,null,null,null,null,null,null,null,null,null,null,null,null,null,null,null,null,null,null,null,null,"Proveedores"]
[null,null,null,null,null,null,null,null,null,null,null,null,null,null,null,null,null,null,null,null,null,null,null,null,null,null,"CATALOGO"]
[]
[]
[]
[null,null,null,null,null,null,null,null,null,null,null,null,null,null,null,null,null,null,null,null,null,null,null,null,null,null,"Suma de Valor_adjudicado"]
[null,null,null,null,null,null,null,null,null,null,null,null,null,null,null,null,null,null,null,null,null,null,null,null,null,null,8763372.8485800009]
[]
["1. PARTICIPACIÓN MENSUAL DE LA CONTRATACIÓN PÚBLICA2"]
[]
[null,"Composición mensual de la contratación pública  ",null,null,null,null,null,null,"Participación de Emergencias respecto a la compra pública total"]
[]
[]
[]
[]
[null,null,null,null,null,null,null,null,"Valor Adjudicado"]
[null,null,null,null,null,null,null,null,30.958673983931931]
[null,null,null,null,null,null,null,null,null,null,null,null,null,null,null,null,null,null,null,null,null,null,null,null,null,null,"Suma de Valor_adjudicado"]
[null,null,null,null,null,null,null,null,"Valor Adjudicado","Resto de Procedimietnos","Contratación Pública Total",null,null,null,null,null,null,null,null,null,null,null,null,null,null,null,8763372.8485800009,null,null,null,{"$f":"AB125","v":105}]
[null,null,null,null,null,null,null,null,{"$f":"I115","v":30.958673983931931},{"$f":"K118-I118","v":1915.6356907935533},1946.5943647774852]
[]
[null,null,null,null,null,null,null,null,"Compra Pública Total","Emergencias","Resto Procedimientos",null,null,null,null,null,null,null,null,null,null,null,null,null,null,null,null,null,null,null,{"$f":"AB128","v":137}]
[null,null,null,null,null,null,null,null,{"$f":"K118/$K$118","v":1},{"$f":"I118/$K$118","v":1.5904019113643541E-2},{"$f":"J118/$K$118","v":0.98409598088635641}]
[]
[]
[null,null,null,null,null,null,null,null,null,null,null,null,null,null,null,null,null,null,null,null,null,null,null,null,null,null,"Suma de Número de entidades que publicaron resoluciones_","Suma de Número de resoluciones publicadas"]
[null,null,null,null,null,null,null,null,null,null,null,null,null,null,null,null,null,null,null,null,null,null,null,null,null,null,87,105,null,{"$f":"AA125","v":87}]
[]
["3. CONTRATACIÓN PÚBLICA POR TIPO DE COMPRA",null,null,null,null,null,null,null,null,null,null,null,null,null,null,null,null,null,null,null,null,null,null,null,null,null,"Suma de Número de entidades que registraron contrataciones","Suma de Número de contrataciones registradas"]
[null,null,null,null,null,null,null,null,null,null,null,null,null,null,null,null,null,null,null,null,null,null,null,null,null,null,44,137,null,{"$f":"AA128","v":44}]
[null,"Monto adjudicado por tipo de compra",null,null,null,null,null,"Participación del monto adjudicado por tipo de compra"]
[]
[null,"Tipo de compra","Valor Adjudicado "]
[null,"Obra",14.772903928416781]
[null,"Bien",14.747472632053814,null,null,null,null,null,null,null,null,null,null,null,null,null,null,null,null,null,null,null,null,null,null,null,"Etiquetas de fila","Número de resoluciones publicadas ","Número de contrataciones registradas "]
[null,"Servicio",1.2811512974294601,null,null,null,null,null,null,null,null,null,null,null,null,null,null,null,null,null,null,null,null,null,null,null,"Azuay",18,37]
[null,"Consultoría",0.15714612603187561,null,null,null,null,null,null,null,null,null,null,null,null,null,null,null,null,null,null,null,null,null,null,null,"Manabí",12,20]
[null,"Total",30.958673983931931,null,null,null,null,null,null,null,null,null,null,null,null,null,null,null,null,null,null,null,null,null,null,null,"Guayas",12,14]
[null,null,null,null,null,null,null,null,null,null,null,null,null,null,null,null,null,null,null,null,null,null,null,null,null,null,"Chimborazo",8,11]
[null,null,null,null,null,null,null,null,null,null,null,null,null,null,null,null,null,null,null,null,null,null,null,null,null,null,"Pichincha",8,4]
[null,null,null,null,null,null,null,null,null,null,null,null,null,null,null,null,null,null,null,null,null,null,null,null,null,null,"El Oro",8,11]
[null,null,null,null,null,null,null,null,null,null,null,null,null,null,null,null,null,null,null,null,null,null,null,null,null,null,"Loja",8,10]
[null,null,null,null,null,null,null,null,null,null,null,null,null,null,null,null,null,null,null,null,null,null,null,null,null,null,"Esmeraldas",5,1]
[null,null,null,null,null,null,null,null,null,null,null,null,null,null,null,null,null,null,null,null,null,null,null,null,null,null,"Morona Santiago",4,3]
["5. CONTRATACIÓN PÚBLICA CON RESPECTO A LA PROVINCIA DE LA ENTIDAD CONTRATANTE",null,null,null,null,null,null,null,null,null,null,null,null,null,null,null,null,null,null,null,null,null,null,null,null,null,"Cañar",3,6]
[null,null,null,null,null,null,null,null,null,null,null,null,null,null,null,null,null,null,null,null,null,null,null,null,null,null,"Napo",3]
[null,"Participación de la contratación pública a nivel provincial",null,null,null,null,null,null,null,null,null,null,null,null,null,null,null,null,null,null,null,null,null,null,null,null,"Santa Elena",2,6]
[null,null,null,null,null,null,null,null,null,null,null,null,null,null,null,null,null,null,null,null,null,null,null,null,null,null,"Tungurahua",2,1]
[null,null,null,null,null,null,null,null,null,null,null,null,null,null,null,null,null,null,null,null,null,null,null,null,null,null,"Sucumbíos",2,2]
[null,null,null,null,null,null,null,null,null,null,null,null,null,null,null,null,null,null,null,null,null,null,null,null,null,null,"Carchi",2,1]
[null,null,null,null,null,null,null,null,null,null,null,null,null,null,null,null,null,null,null,null,null,null,null,null,null,null,"Zamora Chinchipe",2,2]
[null,null,null,null,null,null,null,null,null,null,null,null,null,null,null,null,null,null,null,null,null,null,null,null,null,null,"Imbabura",2,6]
[null,null,null,null,null,null,null,null,null,null,null,null,null,null,null,null,null,null,null,null,null,null,null,null,null,null,"Los Ríos",2,1]
[null,null,null,null,null,null,null,null,null,null,null,null,null,null,null,null,null,null,null,null,null,null,null,null,null,null,"Bolívar",1]
[null,null,null,null,null,null,null,null,null,null,null,null,null,null,null,null,null,null,null,null,null,null,null,null,null,null,"Pastaza",1,1]
[null,null,null,null,null,null,null,null,null,null,null,null,null,null,null,null,null,null,null,null,null,null,null,null,null,null,"Total general",105,137]
[]
[]
[]
[]
[]
[]
[]
[null,null,null,null,null,null,null,null,null,null,null,null,null,null,null,null,null,null,null,null,null,null,null,null,null,null,"Etiquetas de fila","Número de resoluciones publicadas ","Número de contrataciones registradas "]
[null,null,null,null,null,null,null,null,null,null,null,null,null,null,null,null,null,null,null,null,null,null,null,null,null,null,"Otros",4,24]
[null,null,null,null,null,null,null,null,null,null,null,null,null,null,null,null,null,null,null,null,null,null,null,null,null,null,"Sociedades Anónimas",4,24]
[null,null,null,null,null,null,null,null,null,null,null,null,null,null,null,null,null,null,null,null,null,null,null,null,null,null,"Gobierno Central y sus EP",20,31]
[null,null,null,null,null,null,null,null,null,null,null,null,null,null,null,null,null,null,null,null,null,null,null,null,null,null,"Educación Superior",1,1]
[null,null,null,null,null,null,null,null,null,null,null,null,null,null,null,null,null,null,null,null,null,null,null,null,null,null,"EP de la Función Ejecutiva",1,2]
[null,null,null,null,null,null,null,null,null,null,null,null,null,null,null,null,null,null,null,null,null,null,null,null,null,null,"Seguridad Social",1]
[null,null,null,null,null,null,null,null,null,null,null,null,null,null,null,null,null,null,null,null,null,null,null,null,null,null,"Administración del Estado",17,28]
[null,null,null,null,null,null,null,null,null,null,null,null,null,null,null,null,null,null,null,null,null,null,null,null,null,null,"GAD y sus EP",81,82]
[null,null,null,null,null,null,null,null,null,null,null,null,null,null,null,null,null,null,null,null,null,null,null,null,null,null,"GAD Parroquiales Rurales",6,10]
["6. PARTICIPACIÓN DE LA CONTRATACIÓN PÚBLICA POR SECTORES Y SECTORIALES DE GOBIERNO3",null,null,null,null,null,null,null,null,null,null,null,null,null,null,null,null,null,null,null,null,null,null,null,null,null,"GAD Provinciales",7,7]
[null,null,null,null,null,null,null,null,null,null,null,null,null,null,null,null,null,null,null,null,null,null,null,null,null,null,"EP de los GAD",8,14]
[null,"Contratación pública por sectores de gobierno",null,null,null,null,null,null,"Participación de contratación pública por sectores de gobierno",null,null,null,null,null,null,null,null,null,null,null,null,null,null,null,null,null,"GAD Municipales",60,51]
[null,null,null,null,null,null,null,null,null,null,null,null,null,null,null,null,null,null,null,null,null,null,null,null,null,null,"Total general",105,137]
[null,"Sector de Gobierno Agrupado⁴","Sector de Gobierno","Valor Adjudicado "]
[null,"GAD y sus EP","GAD Provinciales",12.00582377705723]
[null,null,"GAD Municipales",4.2989250545244886]
[null,null,"EP de los GAD",4.0435409930069E-2]
[null,null,"GAD Parroquiales Rurales",1.481055814656429E-2]
[null,"Gobierno Central y sus EP","EP de la Función Ejecutiva",12.20393118262291]
[null,null,"Administración del Estado",1.7767144153770005]
[null,null,"Educación Superior",0.25154998898506165]
[null,"Otros","Sociedades Anónimas",0.36648359728860669]
[null,"Total",null,30.958673983931931]
[]
[]
[]
[]
[]
[]
[null,"Contratación pública por sectoriales de gobierno",null,null,null,null,null,null,"Participación de contratación pública por sectoriales de gobierno"]
[]
[null,"Sectorial de Gobierno","Valor Adjudicado "]
[null,"Régimen de GAD",16.319559389728283]
[null,"Recursos Naturales",12.545971779356478]
[null,"Salud",1.52822211555781]
[null,"Educación",0.31226490810513496]
[null,"Asuntos Internos",0.14608490094542503]
[null,"Defensa Nacional",4.1692479753692169E-2]
[null,"Desarrollo Urbano y Vivienda",3.8345909910276532E-2]
[null,"Comunicaciones",2.4443000555038452E-2]
[null,"Comercio Exterior Industrialización Pesca y Competitividad",2.0895000197924674E-3]
[null,"Total",30.958673983931931]
[]
[]
[]
[]
[]
[]
[]
[]
[]
[]
[]
[]
[]
[]
[]
[]
["7. RANKING DE LAS 20 MAYORES ENTIDADES CONTRATANTES Y 20 MAYORES PROVEEDORES"]
[]
[null,"Ranking de las 20 mayores entidades contratantes",null,null,null,null,null,"Ranking de los 20 mayores proveedores adjudicados5"]
[]
[null,"Entidad","Valor \nAdjudicado",null,null,null,null,"Proveedor","Valor Adjudicado"]
[null,"EMPRESA ELÉCTRICA PÚBLICA ESTRATÉGICA CORPORACIÓN NACIONAL DE ELECTRICIDAD CNEL EP",12.179488182067871,null,null,null,null,"ACRETI S.A.",12.179488182067871]
[null,"GOBIERNO PROVINCIAL DEL GUAYAS",11.41172981262207,null,null,null,null,"INESTRUCSUR INGENIERIA DE ESTRUCTURAS DE SUR AMERICA S.A",11.41172981262207]
[null,"MUNICIPIO DE LOJA",1.2466248832643032,null,null,null,null,"IASA S.A.",0.6940000131726265,null,null,"Valor Adjudicado"]
[null,"GOBIERNO AUTONOMO DESCENTRALIZADO DE SAN MIGUEL DE IBARRA",0.82382266223430634,null,null,null,null,"QUINTANA VILAC LUIS EDUARDO",0.34715297818183899,null,null,30.958673983931931]
[null,"HOSPITAL GENERAL DR. LIBORIO PANCHANA SOTOMAYOR",0.78893965482711792,"Valor Adjudicado","Resto de Procedimietnos",null,null,"MEDICANTES S.A.",0.25200000405311584,"Top 20 Proveedores","Resto de Emergencias","Total Emergencias"]
[null,"GOBIERNO AUTONOMO DESCENTRALIZADO MUNICIPAL DEL CANTON NARANJAL GADMCN",0.6940000131726265,{"$f":"AJ83","v":0},{"$f":"F236-D231","v":30.958673983931931},null,null,"CASTVISE CIA LTDA",0.25154998898506165,{"$f":"GETPIVOTDATA(\"Valor_adjudicado millones\",Dashboard!$H$225)","v":27.659890217444627},{"$f":"L231-J231","v":3.2987837664873041},{"$f":"GETPIVOTDATA(\"Valor_adjudicado millones\",$F$233)","v":30.958673983931931}]
[null,"MUNICIPIO DE CHONE",0.50538385938853025,null,null,null,null,"BLACIO AGUIRRE RICHARD HENRY",0.23667226731777191]
[null,"INSTITUTO NACIONAL DE INVESTIGACIÓN EN SALUD PUBLICA -INSPI- DR. LEOPOLDO IZQUIETA PÉREZ",0.40902895905310288,null,null,"Valor Adjudicado",null,"BENAVIDES PEREZ DAVID ANDRES",0.23578624427318573,"Top 20 Entidades","Resto de Emergencias","Total Emergencias"]
[null,"ELECTRO GENERADORA DEL AUSTRO S.A. ",0.36648359728860669,null,null,30.958673983931931,null,"PROAÑO FIERRO MARIA RITTA",0.19602495431900024,{"$f":"J231/L231","v":0.89344557301777761},{"$f":"K231/L231","v":0.10655442698222244},{"$f":"J234+K234","v":1}]
[null,"GOBIERNO PROVINCIAL DE PICHINCHA",0.34715297818183899,"Top 20 Entidades","Resto de Emergencias","Total Emergencias",null,"ARANDY LOPEZ DAVID ALEJANDRO",0.1943371444940567]
[null,"HOSPITAL GENERAL DR. NAPOLEON DÁVILA CÓRDOVA",0.3072405017667279,{"$f":"GETPIVOTDATA(\"Valor_adjudicado millones\",Dashboard!$B$225)","v":30.402170325214911},{"$f":"F236-D236","v":0.55650365871701979},{"$f":"GETPIVOTDATA(\"Valor_adjudicado millones\",$F$233)","v":30.958673983931931},null,"JARAMILLO CASTILLO LUIS ENRIQUE",0.19140666723251343]
[null,"UNIVERSIDAD DE CUENCA",0.25154998898506165,null,null,null,null,"GUEVAZCO COMPAÑIA LIMITADA",0.17849600315093994]
[null,"GOBIERNO AUTONOMO DESCENTRALIZADO MUNICIPAL DE PUTUMAYO",0.21445287764072418,"Top 20 Entidades","Resto de Emergencias","Total Emergencias",null,"CONSTRUCTORA ZUÑIGA CONZU CIA.LTDA.",0.17652426660060883]
[null,"GOBIERNO AUTONOMO DESCENTRALIZADO PROVINCIAL DE SANTA ELENA",0.1719450056552887,{"$f":"D236/F236","v":0.98202430572427446},{"$f":"E236/F236","v":1.7975694275725585E-2},{"$f":"D239+E239","v":1},null,"SAENZ RONQUILLO JOSE ANTONIO",0.1719450056552887]
[null,"SERVICIO NACIONAL DE ATENCIÓN INTEGRAL A PERSONAS ADULTAS PRIVADAS DE LA LIBERTAD Y A ADOLESCENTES INFRACTORES",0.14608490094542503,null,null,null,null,"LINDE ECUADOR S.A.",0.17044999450445175]
[null,"GOBIERNO AUTONOMO DESCENTRALIZADO MUNICIPAL DE EL GUABO",0.14214280247688293,null,null,null,null,"VILLA ADRIANO ROSA INES",0.16477373242378235]
[null,"GOBIERNO AUTONOMO DESCENTRALIZADO MUNICIPAL DEL CANTON CEVALLOS",0.10860934108495712,null,null,null,null,"CONSTRUFISCA S.A.",0.15714612603187561]
[null,"GOBIERNO AUTONOMO DESCENTRALIZADO MUNICIPAL DEL CANTON SUCRE",0.10471927002072334,null,null,null,null,"BIOMOL ECUADOR CIA. LTDA.",0.15574182569980621]
[null,"MUNICIPIO DEL CANTÓN EL EMPALME",9.9771112203598022E-2,null,null,null,null,"SOCIEDAD CIVIL R&H CONSTRUCCIONES",0.15106478333473206]
[null,"GOBIERNO AUTONOMO DESCENTRALIZADO MUNICIPAL DE MONTUFAR",8.2999922335147858E-2,null,null,null,null,"MEDICA ECUADOR EQUIPOS E INSUMOS MEDICOS MEDECU C.A.",0.14360022332402878]
[null,"Total",30.402170325214911,null,null,null,null,"Total",27.659890217444627]
[]
[]
["8. CLASIFICACIÓN NACIONAL CENTRAL DE PRODUCTOS (CPC) (TOP 20)"]
[]
[null,null,"Ranking de los 20 mayores CPC adjudicados"]
[]
[]
[]
[]
[]
[]
[]
[]
[]
[]
[]
[]
[]
[]
[]
[]
[]
[]
[]
[]
[]
[]
[]
[]
[]
[]
[]
[]
[]
["Notas:\n1. Datos provisionales\n2. Fuente: SERCOP - SOCE. El monto adjudicado no considera procesos identificados como duplicados, desiertos, gestionados en años anteriores, donde no se hicieron contrataciones y donde se dejaron las resoluciones insubsistentes. Excluye proceso 030-CG-2019-00014 cuya resolución de emergencia no consta dentro del período de análisis.\n3. Clasificación según Catálogo de Instituciones y Entidades Operativas Desconcentradas del Sector Público del Ministerio de Economía y Finanzas. \n4. Gobierno Central incluye los siguientes sectores: Administración del Estado, Entidades de Educación Superior, Entidades de Seguridad Social y Empresas Públicas de la Función Ejecutiva; GAD y sus EP contiene GAD Municipales, Provinciales y Parroquiales Rurales y sus Empresas Públicas; Otras entidades incluye Sociedades Anónimas con participación pública, Entidades Financieras Públicas y Otros.\n5. Incluye información de proveedores que hacen a la vez de entidades. Además, en casos donde adjudicó un consorcio el nombre que registra es del procurador\n6.Información corresponde a procesos publicados y gestionados en el período enero-mayo 2021\n7.No se registran contrataciones publicadas y gestionadas en enero de 2021."]
[]
[]
[]
[]
[]
[]
[]
[]
[null,null,null,null,null,null,null,null,null,null,"#ComprasPúblicasTransparentes"]